Cogmind - Beta 9.4 --- EXPLORER MODE // 2020.03.27 @ 03:14:12 // Winter2019/RPGLIKE Player: hemo Result: Smashed by cave-in Performance ------------- Evolutions (8) 4000 Regions Visited (33) 6600 Robots Destroyed (259) 1295 Value Destroyed (13408) 13408 Prototype IDs (86) 1720 Alien Tech Used (7) 1400 Bonus (3965) 3965 TOTAL SCORE: 32388 Bonus ------- High Alert Combat Kills 1001 Follower Combat Kills 1908 Entered Garrisons 600 Network Hubs Disabled 200 Met Imprinter 300 Was Imprinted 300 Met Zhirov 300 Met R17 at Cetus 500 Friendly Fire -1144 Cogmind --------- Core Integrity 0/650 Matter 300/300 Energy 265/270 System Corruption 0% Temperature Cool (5) Movement Flying (26) Location -2/Research Parts ------- > --- POWER (2) -------- Micro Fission Core Zionite Light DM Reactor > --- PROPULSION (5) --- Impulse Thruster Impulse Thruster Q-thruster Electron Diverter Electron Diverter > --- UTILITY (12) ----- Makeshift Sensor Array Experimental Signal Interpreter Experimental Melee Analysis Suite Experimental Core Analyzer Experimental Armor Integrity Analyzer Microactuators Microactuators Actuator Array Improved Maneuvering Thrusters Makeshift Cloaking Device Zionite Light Carapace Antimissile System > --- WEAPON (7) ------- Ionic Axe Molecular Scythe Sigix Broadsword Lance Lance Force Lance > --- INVENTORY (5) ---- Zionite Biocell (1000) Improved Light Armor Plating Advanced Force Field System Restoration Module Peak State ------------ > --- POWER ------------ Micro Fission Core Zionite Light DM Reactor > --- PROPULSION ------- Impulse Thruster Impulse Thruster Q-thruster Electron Diverter Electron Diverter > --- UTILITY ---------- Makeshift Sensor Array Experimental Signal Interpreter Experimental Melee Analysis Suite Experimental Core Analyzer Experimental Armor Integrity Analyzer Microactuators Microactuators Actuator Array Improved Maneuvering Thrusters Makeshift Cloaking Device Zionite Light Carapace Antimissile System > --- WEAPON ----------- Ionic Axe Molecular Scythe Sigix Broadsword Lance Lance Force Lance > --- INVENTORY -------- Impulse Thruster Zionite Biocell Improved Light Armor Plating Advanced Force Field System Restoration Module [Rating: 192] Favorites ----------- Power Micro Fission Core Engine Light Ion Engine Power Core Micro Fission Core Reactor Light Particle Reactor Propulsion Xenon Bombardment Thruster Flight Unit Xenon Bombardment Thruster Utility Microactuators Device Microactuators Storage Zionite Biocell Processor Experimental Signal Interpreter Hackware Experimental Hacking Suite Protection Improved Light Armor Plating Weapon Lance Energy Gun Medium Laser Energy Cannon Core Cannon Ballistic Gun Heavy Assault Rifle Ballistic Cannon Enhanced Gauss Cannon Launcher Mini Grenade Launcher Special Weapon Mining Laser Impact Weapon Makeshift Hammer Slashing Weapon Ripper Piercing Weapon Lance Build | -11 -10 -9 -9 -9 -8 -8 -7 -7 -7 -7 -6 -6 -6 -6 -6 -6 -5 -5 -5 -5 -5 -4 -4 -4 -4 -4 -4 -3 -3 -3 -2 -2 -2 ------- Run | Scr Mat Mat Min Exi Min Mat Fac Low Low Zio Pro Fac Gar Fac Low Low Fac Ext Cet Arc Hub Fac Gar Fac Upp Upp Zhi Pro Res Qua Res Gar Res Slots Evolved 22 | 2 2 3 . . . 2 1 1 1 1 . 1 . 2 . . 1 1 1 . . 1 . 1 . . . . 1 . . . . Power 1 | . . . . . . 1 . . . . . . . . . . . . . . . . . . . . . . . . . . . Propulsion 4 | . 1 1 . . . . 1 . . . . . . . . . . . 1 . . . . . . . . . . . . . . Utility 11 | 2 . 2 . . . 1 . . 1 . . 1 . 1 . . 1 . . . . 1 . . . . . . 1 . . . . Weapon 6 | . 1 . . . . . . 1 . 1 . . . 1 . . . 1 . . . . . 1 . . . . . . . . . Parts Attached 247 | 7 5 4 . . 1 8 16 6 2 27 1 1 . 8 2 . 30 10 8 . 14 22 1 8 . 8 2 13 16 15 2 8 2 Power 17 | 1 . . . . . 1 1 1 . . . . . . . . . 2 1 . 2 1 . 2 . . . 2 2 . . 1 . Engine 4 | 1 . . . . . 1 . . . . . . . . . . . 1 1 . . . . . . . . . . . . . . Core 8 | . . . . . . . 1 1 . . . . . . . . . . . . 2 1 . 2 . . . . 1 . . . . Reactor 5 | . . . . . . . . . . . . . . . . . . 1 . . . . . . . . . 2 1 . . 1 . Propulsion 35 | . 2 . . . . 1 2 1 1 . 1 . . 4 . . 1 1 1 . . 8 . 2 . . . 1 5 4 . . . Treads . | . . . . . . . . . . . . . . . . . . . . . . . . . . . . . . . . . . Leg . | . . . . . . . . . . . . . . . . . . . . . . . . . . . . . . . . . . Wheel . | . . . . . . . . . . . . . . . . . . . . . . . . . . . . . . . . . . Hover . | . . . . . . . . . . . . . . . . . . . . . . . . . . . . . . . . . . Flight 35 | . 2 . . . . 1 2 1 1 . 1 . . 4 . . 1 1 1 . . 8 . 2 . . . 1 5 4 . . . Utility 110 | 4 . 3 . . . 3 4 2 1 16 . 1 . 2 1 . 19 4 2 . 6 10 1 2 . 6 2 6 5 5 . 3 2 Device 47 | 2 . 1 . . . 2 2 . 1 4 . . . 2 1 . 12 . . . 2 5 . 1 . 2 1 3 1 1 . 2 2 Storage 4 | . . . . . . . 1 . . . . . . . . . . 1 . . . . . . . 1 . . 1 . . . . Processor 16 | 1 . 1 . . . . . 1 . 8 . . . . . . 2 . . . 2 . . . . . . . 1 . . . . Hackware 2 | . . . . . . . . . . 1 . . . . . . . . . . . 1 . . . . . . . . . . . Protection 41 | 1 . 1 . . . 1 1 1 . 3 . 1 . . . . 5 3 2 . 2 4 1 1 . 3 1 3 2 4 . 1 . Artifact . | . . . . . . . . . . . . . . . . . . . . . . . . . . . . . . . . . . Weapon 85 | 2 3 1 . . 1 3 9 2 . 11 . . . 2 1 . 10 3 4 . 6 3 . 2 . 2 . 4 4 6 2 4 . Energy Gun 9 | . 1 . . . . . . . . 1 . . . . . . 1 1 1 . . . . . . . . 2 . . . 2 . Energy Cannon 5 | . . . . . . . . . . . . . . . . . 2 . . . . . . . . . . . . 2 1 . . Ballistic Gun 9 | 1 1 . . . . 1 2 . . . . . . 1 . . 1 . 1 . . . . . . . . . 1 . . . . Ballistic Cannon 1 | . . . . . . . . . . . . . . . . . . . . . . . . . . 1 . . . . . . . Launcher 11 | . 1 1 . . . 1 1 1 . . . . . 1 . . 1 . . . 3 . . . . . . . 1 . . . . Special Weapon 4 | 1 . . . . 1 1 1 . . . . . . . . . . . . . . . . . . . . . . . . . . Impact Weapon 3 | . . . . . . . 2 . . . . . . . 1 . . . . . . . . . . . . . . . . . . Slashing Weapon 15 | . . . . . . . 2 1 . 7 . . . . . . . 1 . . . 1 . 2 . . . . . 1 . . . Piercing Weapon 28 | . . . . . . . 1 . . 3 . . . . . . 5 1 2 . 3 2 . . . 1 . 2 2 3 1 2 . Special Melee Weapon . | . . . . . . . . . . . . . . . . . . . . . . . . . . . . . . . . . . Unidentified Prototypes 38 | . . . . . . . . . . 5 . . . . . . 4 4 3 . 4 2 . . . . 2 1 2 6 1 4 . Parts Lost 3 | . . . . . . . 1 . . . . . . . . . . 1 . . 1 . . . . . . . . . . . . Power . | . . . . . . . . . . . . . . . . . . . . . . . . . . . . . . . . . . Propulsion 2 | . . . . . . . 1 . . . . . . . . . . 1 . . . . . . . . . . . . . . . Utility . | . . . . . . . . . . . . . . . . . . . . . . . . . . . . . . . . . . Weapon 1 | . . . . . . . . . . . . . . . . . . . . . 1 . . . . . . . . . . . . Highest Loss Streak 1 | . . . . . . . 1 . . . . . . . . . . 1 . . 1 . . . . . . . . . . . . Average Slot Usage (%) 98 | . 89 94 90 90 90 93 94 93 100 99 100 100 100 97 100 100 99 99 100 100 98 98 100 100 100 100 99 99 99 96 96 96 96 Engine 3 | . 15 9 9 9 9 8 7 6 6 5 5 5 5 5 5 5 4 4 4 4 . . . . . . . . . . . . . Core 4 | . . . . . . . 6 6 6 5 5 5 5 5 5 5 4 4 4 4 7 8 8 8 8 8 8 6 3 3 3 3 3 Flight 20 | . 9 19 18 18 18 22 20 20 25 24 23 22 22 20 20 20 18 18 18 21 21 19 20 20 20 20 20 20 19 19 19 19 19 Device 22 | . 31 20 27 27 27 28 29 25 20 15 17 16 16 19 20 20 22 22 21 21 20 24 25 24 24 24 24 23 23 25 26 26 26 Processor 16 | . 15 15 9 9 9 8 7 6 12 22 23 22 22 20 20 20 19 18 17 17 17 16 16 16 16 16 16 16 15 15 15 15 15 Protection 4 | . . 8 9 9 9 8 7 6 6 3 . 5 5 5 5 5 3 4 4 4 3 3 4 4 4 3 2 3 3 2 3 3 3 Impact Weapon 1 | . . . . . . . 3 . . . . . . . 4 5 4 4 4 4 4 3 . . . . . . . . . . . Slashing Weapon 10 | . . . . . . . . 11 12 13 17 16 16 15 15 15 10 12 13 13 13 11 8 11 12 12 12 12 11 10 11 11 11 Piercing Weapon 8 | . . . . . . . . 6 6 5 5 5 5 5 5 5 7 8 8 8 7 8 16 16 16 16 16 16 15 13 11 11 11 Naked Turns . | . . . . . . . . . . . . . . . . . . . . . . . . . . . . . . . . . . Heaviest Build 72 | 6 9 15 15 15 15 18 28 32 32 32 30 33 33 36 38 38 41 43 45 45 46 48 51 55 55 55 57 64 65 72 72 72 68 Greatest Support 73 | 13 18 18 18 18 18 23 29 34 35 35 36 36 36 43 43 43 43 43 48 48 48 57 57 62 62 62 62 65 73 72 72 72 72 Greatest Overweight (x) 1 | . . . . . . . . . . . . . . . . . 1 1 . . . . . . . . . . . . . . . Average Overweight (x) . | . . . . . . . . . . . . . . . . . . . . . . . . . . . . . . . . . . Largest Inventory Capacity 5 | . 2 2 2 2 3 3 4 4 4 4 4 4 4 4 4 4 4 5 5 5 5 5 5 5 5 5 5 5 5 5 5 5 5 Average Capacity 4 | . . 2 2 2 2 3 3 4 4 4 4 4 4 4 4 4 4 4 5 5 5 5 5 5 5 5 5 5 5 5 5 5 5 Most Carried 5 | . 2 2 2 2 3 3 4 4 4 4 3 3 4 4 4 4 4 5 5 4 5 5 4 5 4 5 5 5 5 5 5 5 4 Average Carried 3 | . . 2 2 1 2 3 3 3 4 3 2 2 3 1 3 4 3 3 4 4 4 4 4 3 4 4 4 4 4 4 4 4 4 Final Capacity 5 | . 2 2 2 2 3 3 4 4 4 4 4 4 4 4 4 4 4 5 5 5 5 5 5 5 5 5 5 5 5 5 5 5 5 Final Carried 5 | . 2 2 2 2 3 3 4 4 4 3 3 2 4 3 4 4 3 5 4 4 3 5 4 4 4 4 5 5 4 4 4 4 4 Class Distribution -------------------- 68% | Messiah-Sprinter 9% | Hacker-Scout 7% | Hacker-Mutant 6% | Messiah-Mutant 4% | Hacker-Ninja 3% | Scavenger-Scout Dominant Class ---------------- Hacker-Mutant | -10/Materials Hacker-Mutant | -9/Materials Hacker-Scout | -9/Mines Hacker-Scout | -9/Exiles Hacker-Scout | -8/Mines Hacker-Scout | -8/Materials Hacker-Scout | -7/Factory Hacker-Ninja | -7/Lower Caves Scavenger-Scout | -7/Lower Caves Hacker-Mutant | -7/Zion Messiah-Mutant | -6/Proximity Caves Messiah-Sprinter | -6/Factory Messiah-Sprinter | -6/Garrison Messiah-Sprinter | -6/Factory Messiah-Sprinter | -6/Lower Caves Messiah-Sprinter | -6/Lower Caves Messiah-Sprinter | -5/Factory Messiah-Sprinter | -5/Extension Messiah-Sprinter | -5/Cetus Messiah-Sprinter | -5/Archives Messiah-Sprinter | -5/Hub_04(d) Messiah-Sprinter | -4/Factory Messiah-Sprinter | -4/Garrison Messiah-Sprinter | -4/Factory Messiah-Sprinter | -4/Upper Caves Messiah-Sprinter | -4/Upper Caves Messiah-Sprinter | -4/Zhirov Messiah-Sprinter | -3/Proximity Caves Messiah-Sprinter | -3/Research Messiah-Sprinter | -3/Quarantine Messiah-Sprinter | -2/Research Messiah-Sprinter | -2/Garrison Messiah-Sprinter | -2/Research Resources | -11 -10 -9 -9 -9 -8 -8 -7 -7 -7 -7 -6 -6 -6 -6 -6 -6 -5 -5 -5 -5 -5 -4 -4 -4 -4 -4 -4 -3 -3 -3 -2 -2 -2 ----------- Run | Scr Mat Mat Min Exi Min Mat Fac Low Low Zio Pro Fac Gar Fac Low Low Fac Ext Cet Arc Hub Fac Gar Fac Upp Upp Zhi Pro Res Qua Res Gar Res Matter Collected 3085 | 306 80 79 . . 13 113 314 60 10 62 248 10 . 30 80 . 300 95 80 . 145 230 20 80 . 80 40 130 160 91 72 137 20 Remotely . | . . . . . . . . . . . . . . . . . . . . . . . . . . . . . . . . . . Salvage Created 11104 | 156 50 265 . . 13 64 192 587 65 . 662 30 . 30 257 . 688 644 526 90 849 304 678 149 429 311 462 545 1083 248 . 1091 636 Parts 627 | 8 8 22 . . 2 3 15 33 5 . 27 2 . . 5 . 41 38 34 16 53 26 41 9 23 6 1 45 70 16 . 39 39 Haulers Intercepted 3 | . . . . . . 1 . . . . . . . . . . 1 . . . 1 . . . . . . . . . . . . Recyclers Shooed 1 | . . 1 . . . . . . . . . . . . . . . . . . . . . . . . . . . . . . . Parts Field Recycled . | . . . . . . . . . . . . . . . . . . . . . . . . . . . . . . . . . . Retrieved Matter . | . . . . . . . . . . . . . . . . . . . . . . . . . . . . . . . . . . Parts Self-Destructed . | . . . . . . . . . . . . . . . . . . . . . . . . . . . . . . . . . . Prevented . | . . . . . . . . . . . . . . . . . . . . . . . . . . . . . . . . . . Kills | -11 -10 -9 -9 -9 -8 -8 -7 -7 -7 -7 -6 -6 -6 -6 -6 -6 -5 -5 -5 -5 -5 -4 -4 -4 -4 -4 -4 -3 -3 -3 -2 -2 -2 ------- Run | Scr Mat Mat Min Exi Min Mat Fac Low Low Zio Pro Fac Gar Fac Low Low Fac Ext Cet Arc Hub Fac Gar Fac Upp Upp Zhi Pro Res Qua Res Gar Res Combat Hostiles Destroyed 177 | . 2 9 . . . . 4 13 4 . 9 . . . 4 . 9 14 8 2 7 3 15 4 10 1 . 17 15 2 . 17 8 Melee 161 | . . . . . . . 1 13 4 . 9 . . . 4 . 9 14 8 2 7 3 15 4 10 1 . 17 13 2 . 17 8 Guns 9 | . 2 4 . . . . 3 . . . . . . . . . . . . . . . . . . . . . . . . . . AOE 7 | . . 5 . . . . . . . . . . . . . . . . . . . . . . . . . . 2 . . . . Classes Destroyed 24 | 2 2 3 . . . 2 1 3 1 . 2 . . 1 . . . . 1 . 3 . 1 . . 1 . . . 1 . . . Worker 8 | . 1 1 . . . . . . . . . . . . . . . . . . 2 . . . . . . . 2 1 . . 1 Builder 10 | . . 1 . . . . . . . . . . . . . . 5 . . . . . . . . . . . 4 . . . . Tunneler 7 | 4 . . . . 1 . . . . . . . . . . . 2 . . . . . . . . . . . . . . . . Hauler 3 | . . . . . . 1 . . . . . . . . . . 1 . . . 1 . . . . . . . . . . . . Recycler 4 | 1 . 1 . . . . . . . . . . . . . . . 1 . . . . . . . . . . . 1 . . . Carrier 1 | . . . . . . . . . . . . . . . . . . . 1 . . . . . . . . . . . . . . Mechanic 1 | . . . . . . . . . . . . . . 1 . . . . . . . . . . . . . . . . . . . Operator 13 | . . . . . . 1 1 . . . . 1 . . . . 3 1 . 3 3 . . . . . . . . . . . . Watcher 28 | . . 1 . . . 2 . . . . . . . . . . 5 3 2 . 3 4 . 1 . . . . 4 1 . . 2 Swarmer 52 | . 2 3 . . . . 3 2 3 . . . . . 4 . 3 7 . . 1 . . 2 6 . . 9 2 . . 3 2 Grunt 41 | . . 6 . . . . . 2 . . 2 . . . . . 2 1 . . 1 1 10 . 4 . . 1 3 . . 8 . Brawler 6 | . . . . . . . . 2 . . 2 . . . . . . . . . . . 1 . . . . 1 . . . . . Duelist 8 | . . . . . . . . 1 . . 1 . . . . . 1 1 . . . . . . . . . 1 . . . 3 . Protector 1 | . . . . . . . . . . . . . . . . . . . . . 1 . . . . . . . . . . . . Researcher 2 | . . . . . . . . . . . . . . . . . . . . . . . . . . . . . . 2 . . . Sentry 21 | . . . . . . . 1 2 . . 1 . . . . . 2 3 . 2 1 . 1 2 . . . 1 3 . . . 2 Specialist 2 | . . . . . . . . . . . . . . . . . . . . . . . 2 . . . . . . . . . . Hunter 16 | . . . . . . . . . 1 . 1 . . . . . . 2 . . . . . . . . . 2 4 2 . 2 2 Programmer 12 | . . . . . . . . . . . 1 . . . . . 1 . 2 . . 2 . . . . . 1 3 . . . 2 Behemoth 5 | . . . . . . . . . . . 1 . . . . . . . . . 1 . 1 . . . . 1 . . . 1 . Cetus Guard 6 | . . . . . . . . . . . . . . . . . . . 6 . . . . . . . . . . . . . . Lightning 2 | . . . . . . . . . . . . . . . . . . . . . 2 . . . . . . . . . . . . Z-Light 1 | . . . . . . . . . . . . . . . . . . . . . 1 . . . . . . . . . . . . Decomposer 1 | . . . . . . . . . . . . . . . . . . . . . . . . . 1 . . . . . . . . Thug 1 | . . . . . . . . 1 . . . . . . . . . . . . . . . . . . . . . . . . . Martyr 2 | . . . . . . . . . . . . . . . . . . . . . 2 . . . . . . . . . . . . Fireman 4 | . . . . . . . . 3 . . . . . . . . . . . . 1 . . . . . . . . . . . . Mutant 1 | . . . . . . . . . . . . . . . . . . . . . . . . . . 1 . . . . . . . Best Kill Streak 12 | 3 2 12 . . 1 4 3 6 3 . 5 1 . 1 2 . 5 9 4 5 7 2 9 4 7 1 . 9 7 4 . 9 5 Combat Bots Only 9 | . 2 9 . . . . 3 6 3 . 5 . . . 2 . 4 7 3 2 7 1 9 4 7 1 . 9 5 2 . 9 3 Max Kills in Single Turn 6 | 1 1 4 . . 1 2 1 1 1 . 1 1 . 1 1 . 1 2 1 1 4 1 2 1 3 1 . 2 6 1 . 1 1 Gunslinging . | . . . . . . . . . . . . . . . . . . . . . . . . . . . . . . . . . . Exploded 2 | . . 2 . . . . . . . . . . . . . . . . . . . . . . . . . . 2 . . . . Melee 3 | . . . . . . . 1 1 1 . 1 . . . 1 . 1 2 1 1 1 1 2 1 3 1 . 2 1 1 . 1 1 Uniques/NPCs Destroyed . | . . . . . . . . . . . . . . . . . . . . . . . . . . . . . . . . . . Combat | -11 -10 -9 -9 -9 -8 -8 -7 -7 -7 -7 -6 -6 -6 -6 -6 -6 -5 -5 -5 -5 -5 -4 -4 -4 -4 -4 -4 -3 -3 -3 -2 -2 -2 -------- Run | Scr Mat Mat Min Exi Min Mat Fac Low Low Zio Pro Fac Gar Fac Low Low Fac Ext Cet Arc Hub Fac Gar Fac Upp Upp Zhi Pro Res Qua Res Gar Res Damage Taken 5690 | . 32 71 . . 12 73 479 283 51 . 143 . 118 30 80 . 287 868 231 62 589 158 223 81 68 22 . 137 123 53 . 449 967 Core 4319 | . 24 37 . . 9 57 392 189 29 . 121 . 95 12 73 . 226 695 181 41 455 126 143 65 40 17 . 100 95 44 . 292 761 Absorbed by Shields 19 | . . . . . . . . . . . . . . . . . . . . . . . . . . . . . . . . 19 . Redirected to Core 3505 | . 18 37 . . 9 38 236 133 22 . 70 . 75 12 22 . 186 618 147 41 334 117 122 56 40 17 . 89 68 29 . 267 702 Core Remaining (%) 90 | 100 98 . . . 90 81 . . . . 100 . . . . 91 . . . . 59 . . . . . . 98 . 100 . . . Volleys Fired 107 | 12 14 14 . . 6 28 30 . . 1 . . . 1 . . . . . . 1 . . . . . . . . . . . . Largest 2 | 1 1 2 . . 1 2 2 . . 1 . . . 1 . . . . . . 1 . . . . . . . . . . . . Hottest 250 | 20 100 53 . . 100 100 100 . . 250 . . . 30 . . . . . . 39 . . . . . . . . . . . . Shots Fired 121 | 12 14 21 . . 6 32 33 . . 1 . . . 1 . . . . . . 1 . . . . . . . . . . . . Gun 56 | 12 11 14 . . 1 7 10 . . 1 . . . . . . . . . . . . . . . . . . . . . . . Cannon . | . . . . . . . . . . . . . . . . . . . . . . . . . . . . . . . . . . Launcher 18 | . . 7 . . . 4 5 . . . . . . 1 . . . . . . 1 . . . . . . . . . . . . Special 47 | . 3 . . . 5 21 18 . . . . . . . . . . . . . . . . . . . . . . . . . . Kinetic 44 | 12 . 14 . . 1 7 10 . . . . . . . . . . . . . . . . . . . . . . . . . . Thermal 59 | . 14 . . . 5 21 18 . . 1 . . . . . . . . . . . . . . . . . . . . . . . Explosive 18 | . . 7 . . . 4 5 . . . . . . 1 . . . . . . 1 . . . . . . . . . . . . Electromagnetic . | . . . . . . . . . . . . . . . . . . . . . . . . . . . . . . . . . . Robot Hit Streak 26 | 3 6 14 . . 15 26 5 . . . . . . . . . . . . . 4 . . . . . . . . . . . . Robot Miss Streak 2 | 1 1 1 . . . 1 2 . . . . . . . . . . . . . . . . . . . . . . . . . . Penetration Max . | . . . . . . . . . . . . . . . . . . . . . . . . . . . . . . . . . . Secondary Targets . | . . . . . . . . . . . . . . . . . . . . . . . . . . . . . . . . . . Shots Hit Robots 582 | 9 8 14 . . 1 11 9 35 5 . 24 1 13 2 20 . 47 33 35 7 42 14 40 12 15 8 7 34 30 16 . 61 29 Core Hits 389 | 6 4 18 . . 1 6 6 19 4 . 17 1 1 . 10 . 28 24 24 5 43 7 23 7 13 5 4 21 38 10 . 30 14 Critical Hits 31 | . . . . . . . . . . . . . 2 . . . 2 . . 1 1 2 2 . 2 2 . 1 2 2 . 7 5 Critical Kills 18 | . . . . . . . . . . . . . . . . . 1 . . 1 1 1 2 . 1 2 . 1 2 2 . 1 3 Critical Parts Destroyed 11 | . . . . . . . . . . . . . 2 . . . . . . . . 1 . . 1 . . . . . . 6 1 Melee Attacks 1183 | . . . . . . . 17 54 8 12 31 5 17 2 25 . 130 182 53 13 67 64 52 21 21 13 9 45 145 29 . 73 95 Impact 75 | . . . . . . . 15 . . . . . . . 4 . 18 18 7 1 7 5 . . . . . . . . . . . Slashing 482 | . . . . . . . . 31 3 5 22 4 10 1 16 . 35 58 17 4 26 39 13 11 5 6 5 17 38 6 . 46 64 Piercing 626 | . . . . . . . 2 23 5 7 9 1 7 1 5 . 77 106 29 8 34 20 39 10 16 7 4 28 107 23 . 27 31 Sneak Attacks 65 | . . . . . . . . 3 . . . . . 2 . . 17 5 1 4 8 2 11 . 1 . . . 2 6 . 2 1 Combat Hostiles 23 | . . . . . . . . 1 . . . . . . . . 1 2 . 2 4 . 11 . . . . . . . . 2 . Follow-up Attacks 225 | . . . . . . . . 8 . . 9 . 5 1 10 . 16 12 20 2 20 6 21 5 4 4 3 17 8 7 . 33 14 Damage Inflicted 40926 | 104 123 1157 . . 17 478 221 1338 206 . 1218 63 641 210 1064 . 3622 2009 1727 662 3969 982 3421 695 1187 1073 1140 2062 3026 1407 . 4751 2353 Guns 558 | 104 75 151 . . 17 86 125 . . . . . . . . . . . . . . . . . . . . . . . . . . Cannons . | . . . . . . . . . . . . . . . . . . . . . . . . . . . . . . . . . . Explosions 3269 | . . 1006 . . . 344 46 . . . . . . . . . . . . . 1138 . . . . . . . 735 . . . . Melee 37003 | . . . . . . . 50 1338 206 . 1218 63 641 210 1064 . 3622 2009 1727 662 2831 982 3421 695 1187 1073 1140 2062 2291 1407 . 4751 2353 Ramming . | . . . . . . . . . . . . . . . . . . . . . . . . . . . . . . . . . . Kinetic 483 | 104 . 151 . . 17 86 125 . . . . . . . . . . . . . . . . . . . . . . . . . . Thermal 171 | . 123 . . . . 48 . . . . . . . . . . . . . . . . . . . . . . . . . . . Explosive 2077 | . . 1006 . . . 292 46 . . . . . . . . . . . . . 43 . . . . . . . 690 . . . . Electromagnetic 1192 | . . . . . . 52 . . . . . . . . . . . . . . 1095 . . . . . . . 45 . . . . Impact 679 | . . . . . . . . . . . . . . . 81 . 97 181 112 . 208 . . . . . . . . . . . . Slashing 15496 | . . . . . . . . 460 . . 843 63 299 105 904 . 1267 480 523 . 882 741 778 407 43 184 775 455 296 437 . 3697 1857 Piercing 20828 | . . . . . . . 50 878 206 . 375 . 342 105 79 . 2258 1348 1092 662 1741 241 2643 288 1144 889 365 1607 1995 970 . 1054 496 Highest Corruption 2 | . 1 . . . . . 1 1 1 1 . . . . . . . . . . 2 . 1 1 1 1 . . 1 1 . . 1 Average Corruption 1 | . 1 . . . . . 1 1 1 1 . . . . . . . . . . 1 . 1 1 1 1 . . 1 1 . . 1 Corruption Purged 2 | . . . . . . . . . . . . . . . . . . . . . . . . . . 1 . . . . . . 1 Effects 18 | . 2 . . . . . 2 1 . . . . . . . . . . . . 2 . . 1 2 1 . . 2 2 . . 3 Message Errors 10 | . 1 . . . . . 1 1 . . . . . . . . . . . . 1 . . 1 2 1 . . 2 . . . . Energy Discharges 2 | . . . . . . . 1 . . . . . . . . . . . . . . . . . . . . . . . . . 1 Data Loss (minor) 2 | . 1 . . . . . . . . . . . . . . . . . . . . . . . . . . . . 1 . . . Targeting Errors 4 | . . . . . . . . . . . . . . . . . . . . . 1 . . . . . . . . 1 . . 2 Overload Shots . | . . . . . . . . . . . . . . . . . . . . . . . . . . . . . . . . . . Overflow Damage 4533 | . . 49 . . . 43 . 10 . . 28 . . 155 152 . 766 358 6 34 272 194 657 131 . 125 333 156 79 285 . 424 276 Projectiles . | . . . . . . . . . . . . . . . . . . . . . . . . . . . . . . . . . . Explosions 133 | . . 49 . . . 43 . . . . . . . . . . . . . . 20 . . . . . . . 21 . . . . Melee 4400 | . . . . . . . . 10 . . 28 . . 155 152 . 766 358 6 34 252 194 657 131 . 125 333 156 58 285 . 424 276 Knockbacks 2 | . . . . . . . . . . . . . . . . . . 1 . . 1 . . . . . . . . . . . . Impact 2 | . . . . . . . . . . . . . . . . . . 1 . . 1 . . . . . . . . . . . . Kinetic . | . . . . . . . . . . . . . . . . . . . . . . . . . . . . . . . . . . Secondary . | . . . . . . . . . . . . . . . . . . . . . . . . . . . . . . . . . . Self-Inflicted Damage 242 | . . 25 . . . 36 81 . . . . . . 30 . . . . . . 70 . . . . . . . . . . . . Shots 11 | . . 1 . . . 4 4 . . . . . . 1 . . . . . . 1 . . . . . . . . . . . . Rammed . | . . . . . . . . . . . . . . . . . . . . . . . . . . . . . . . . . . Targets Rammed . | . . . . . . . . . . . . . . . . . . . . . . . . . . . . . . . . . . Kicked . | . . . . . . . . . . . . . . . . . . . . . . . . . . . . . . . . . . Crushed . | . . . . . . . . . . . . . . . . . . . . . . . . . . . . . . . . . . Highest Temperature 116 | . 70 . . . . . . 17 . 116 . . . . . . . 3 8 3 28 12 13 8 . 17 . . . . . 3 2 Average Temperature 24 | . 33 . . . . . . 17 . 65 . . . . . . . 2 7 3 8 6 7 7 . 7 . . . . . 3 2 Received Heat Transfer 822 | . 12 39 . . . 27 18 208 . . 18 . 9 . 18 . 18 9 81 21 51 21 87 12 21 29 . . 9 . . 78 36 Siege Activations . | . . . . . . . . . . . . . . . . . . . . . . . . . . . . . . . . . . Robots Corrupted 2 | . . . . . . . . . . . . . . . . . . . . . 2 . . . . . . . . . . . . Combat Hostiles . | . . . . . . . . . . . . . . . . . . . . . . . . . . . . . . . . . . Parts Fried 8 | . . . . . . . . . . . . . . . . . 2 . . . 6 . . . . . . . . . . . . Impact Corruptions 1 | . . . . . . . . . . . . . . . . . 1 . . . . . . . . . . . . . . . . Robots Melted . | . . . . . . . . . . . . . . . . . . . . . . . . . . . . . . . . . . Combat Hostiles . | . . . . . . . . . . . . . . . . . . . . . . . . . . . . . . . . . . Parts Melted 5 | . . . . . . . . . . . . . . . . . . 1 . . . . 2 . 1 . . . . . . 1 . Heat Transferred 422 | . 322 . . . . 100 . . . . . . . . . . . . . . . . . . . . . . . . . . . Parts Sabotaged . | . . . . . . . . . . . . . . . . . . . . . . . . . . . . . . . . . . Parts Stolen . | . . . . . . . . . . . . . . . . . . . . . . . . . . . . . . . . . . Parts Stripped . | . . . . . . . . . . . . . . . . . . . . . . . . . . . . . . . . . . Power Chain Reactions . | . . . . . . . . . . . . . . . . . . . . . . . . . . . . . . . . . . Missiles Intercepted . | . . . . . . . . . . . . . . . . . . . . . . . . . . . . . . . . . . Alert | -11 -10 -9 -9 -9 -8 -8 -7 -7 -7 -7 -6 -6 -6 -6 -6 -6 -5 -5 -5 -5 -5 -4 -4 -4 -4 -4 -4 -3 -3 -3 -2 -2 -2 ------- Run | Scr Mat Mat Min Exi Min Mat Fac Low Low Zio Pro Fac Gar Fac Low Low Fac Ext Cet Arc Hub Fac Gar Fac Upp Upp Zhi Pro Res Qua Res Gar Res Peak Influence 979 | 25 109 308 84 . 22 193 155 . . . . 175 401 195 . . 525 534 508 315 979 462 625 359 . . . . 970 632 262 924 657 Average Influence 318 | 14 66 172 84 . 3 95 71 . . . . 167 210 181 . . 302 318 344 282 540 317 377 260 . . . . 368 532 262 640 526 Maximum Alert Level 3 | . . 1 . . . . . . . . . . 2 . . . 2 2 2 1 3 2 2 1 . . . . 3 2 1 3 2 Low Security (%) 31 | 100 100 44 100 . 100 100 100 . . . . 100 61 100 . . 32 21 8 14 27 5 23 . . . . . . . . 8 . Level 1 37 | . . 55 . . . . . . . . . . 28 . . . 35 49 73 85 10 69 26 100 . . . . 67 . 100 4 3 Level 2 26 | . . . . . . . . . . . . . 10 . . . 31 28 18 . 22 25 51 . . . . . 30 100 . 45 96 Level 3 4 | . . . . . . . . . . . . . . . . . . . . . 39 . . . . . . . 2 . . 42 . Level 4 . | . . . . . . . . . . . . . . . . . . . . . . . . . . . . . . . . . . Level 5 . | . . . . . . . . . . . . . . . . . . . . . . . . . . . . . . . . . . High Security . | . . . . . . . . . . . . . . . . . . . . . . . . . . . . . . . . . . Max Security . | . . . . . . . . . . . . . . . . . . . . . . . . . . . . . . . . . . Squads Dispatched 29 | . 1 3 . . . 1 1 . . . . 1 . . . . 5 1 . . 5 2 . 1 . . . . 3 2 . . 3 Investigation 11 | . 1 1 . . . . . . . . . 1 . . . . 3 . . . 2 1 . . . . . . 1 . . . 1 Extermination 4 | . . . . . . . . . . . . . . . . . . . . . . 1 . 1 . . . . 1 1 . . . Reinforcement 11 | . . 2 . . . 1 1 . . . . . . . . . 1 1 . . 3 . . . . . . . 1 . . . 1 Assault 3 | . . . . . . . . . . . . . . . . . 1 . . . . . . . . . . . . 1 . . 1 Garrison . | . . . . . . . . . . . . . . . . . . . . . . . . . . . . . . . . . . Intercept . | . . . . . . . . . . . . . . . . . . . . . . . . . . . . . . . . . . Construction Impeded 3 | . . 1 . . . . . . . . . . . . . . . 1 . . 1 . . . . . . . . . . . . Haulers Reinforced . | . . . . . . . . . . . . . . . . . . . . . . . . . . . . . . . . . . Stealth | -11 -10 -9 -9 -9 -8 -8 -7 -7 -7 -7 -6 -6 -6 -6 -6 -6 -5 -5 -5 -5 -5 -4 -4 -4 -4 -4 -4 -3 -3 -3 -2 -2 -2 --------- Run | Scr Mat Mat Min Exi Min Mat Fac Low Low Zio Pro Fac Gar Fac Low Low Fac Ext Cet Arc Hub Fac Gar Fac Upp Upp Zhi Pro Res Qua Res Gar Res Distress Signals 11 | . . 3 . . . 2 . . . . . . . . . . . 2 . . 1 1 . . . . . . 1 . . . 1 Communications Jammed . | . . . . . . . . . . . . . . . . . . . . . . . . . . . . . . . . . . Distress Signals . | . . . . . . . . . . . . . . . . . . . . . . . . . . . . . . . . . . Times Spotted 300 | . 4 13 . . 1 15 7 12 4 . 9 1 7 1 11 . 17 20 13 3 38 7 15 5 10 1 . 19 21 3 . 27 16 Peak Tracking Total 9 | . 2 5 . . 1 7 4 7 3 . 3 1 4 . 7 . 4 5 5 3 9 2 5 3 3 1 . 7 8 2 . 9 8 Tactical Retreats 19 | . 1 . . . . 5 1 2 . . . . . . . . . . . . 4 . . . . . . 1 2 . . . 3 Traps | -11 -10 -9 -9 -9 -8 -8 -7 -7 -7 -7 -6 -6 -6 -6 -6 -6 -5 -5 -5 -5 -5 -4 -4 -4 -4 -4 -4 -3 -3 -3 -2 -2 -2 ------- Run | Scr Mat Mat Min Exi Min Mat Fac Low Low Zio Pro Fac Gar Fac Low Low Fac Ext Cet Arc Hub Fac Gar Fac Upp Upp Zhi Pro Res Qua Res Gar Res Traps Triggered 15 | . 1 1 . . . . . . . . . . 1 . . . 1 3 . . 1 1 1 . . . . . 1 . . 4 . Indirectly 2 | . . . . . . . . . . . . . . . . . . . . . 1 . . . . . . . 1 . . . . Trap Hack Attempts . | . . . . . . . . . . . . . . . . . . . . . . . . . . . . . . . . . . Triggered . | . . . . . . . . . . . . . . . . . . . . . . . . . . . . . . . . . . Disarmed . | . . . . . . . . . . . . . . . . . . . . . . . . . . . . . . . . . . Reprogrammed 1 | . 1 . . . . . . . . . . . . . . . . . . . . . . . . . . . . . . . . Reused 2 | . 1 . . . . . . . . . . . . . . . . . . . . . . . . . . . 1 . . . . Traps Extracted . | . . . . . . . . . . . . . . . . . . . . . . . . . . . . . . . . . . Installed 16 | . . . . . . . . . . . . . . . . . . . . . . . . . . . . . 16 . . . . Triggered 4 | . 1 . . . . . . . . . 2 . . . . . . . . . . . . . . . . . 1 . . . . Machines | -11 -10 -9 -9 -9 -8 -8 -7 -7 -7 -7 -6 -6 -6 -6 -6 -6 -5 -5 -5 -5 -5 -4 -4 -4 -4 -4 -4 -3 -3 -3 -2 -2 -2 ---------- Run | Scr Mat Mat Min Exi Min Mat Fac Low Low Zio Pro Fac Gar Fac Low Low Fac Ext Cet Arc Hub Fac Gar Fac Upp Upp Zhi Pro Res Qua Res Gar Res Machines Disabled 52 | . . 1 . . . 2 1 1 . . . . 2 . . . 7 2 2 2 17 . 3 . . . . . 4 5 . 3 . Max in Single Turn 14 | . . 1 . . . 2 1 1 . . . . 1 . . . . 1 1 . 14 . 1 . . . . . 1 1 . 1 . Garrison Relay 6 | . . . . . . . . . . . . . 2 . . . . . . . . . 2 . . . . . . . . 2 . Network Hub 1 | . . . . . . . . . . . . . . . . . . . . . 1 . . . . . . . . . . . . Machines Sabotaged . | . . . . . . . . . . . . . . . . . . . . . . . . . . . . . . . . . . Garrisons Compromised . | . . . . . . . . . . . . . . . . . . . . . . . . . . . . . . . . . . Overloaded Fab Kills . | . . . . . . . . . . . . . . . . . . . . . . . . . . . . . . . . . . Fab Network Shutdowns 1 | . . . . . . . . . . . . . . . . . . . . . . . . . . . . . 1 . . . . Hacking | -11 -10 -9 -9 -9 -8 -8 -7 -7 -7 -7 -6 -6 -6 -6 -6 -6 -5 -5 -5 -5 -5 -4 -4 -4 -4 -4 -4 -3 -3 -3 -2 -2 -2 --------- Run | Scr Mat Mat Min Exi Min Mat Fac Low Low Zio Pro Fac Gar Fac Low Low Fac Ext Cet Arc Hub Fac Gar Fac Upp Upp Zhi Pro Res Qua Res Gar Res Machines Accessed 54 | . 3 2 . 2 . 2 3 . 1 1 . 3 . 3 . . 4 1 . 1 . 5 . 3 1 1 9 . 3 3 1 . 2 Terminals 8 | . 3 1 . . . 1 2 . . . . . . . . . . . . . . . . . 1 . . . . . . . . Fabricators 5 | . . . . . . . . . . . . . . . . . 1 . . . . 1 . 1 . . . . 1 . . . 1 Repair Stations 4 | . . . . . . . . . . . . . . 1 . . 1 . . . . 1 . 1 . . . . . . . . . Recycling Units 10 | . . 1 . . . . 1 . . . . 1 . 2 . . 1 1 . . . 1 . . . . . . 2 . . . . Scanalyzers 8 | . . . . . . 1 . . . . . 1 . . . . 1 . . . . 1 . 1 . . . . . 2 . . 1 Garrison Access 4 | . . . . . . . . . . . . 1 . . . . . . . . . 1 . . . . . . . 1 1 . . Total Hacks 209 | . 11 3 . 2 . 13 8 . 1 3 . 6 . 8 . . 12 2 . 25 . 21 . 9 6 1 46 . 9 13 3 . 7 Successful 173 | . 7 3 . 2 . 11 5 . 1 3 . 5 . 8 . . 10 2 . 25 . 15 . 6 6 1 46 . 5 8 1 . 3 Failed 36 | . 4 . . . . 2 3 . . . . 1 . . . . 2 . . . . 6 . 3 . . . . 4 5 2 . 4 Catastrophic 1 | . 1 . . . . . . . . . . . . . . . . . . . . . . . . . . . . . . . . Database Lockouts . | . . . . . . . . . . . . . . . . . . . . . . . . . . . . . . . . . . Manual 229 | . 6 1 . 4 . 6 1 . 1 15 . 2 . 2 . . 47 34 12 2 23 11 . 7 2 1 2 . 16 27 . . 7 Terminals 32 | . 11 2 . . . 7 6 . . . . . . . . . . . . . . . . . 6 . . . . . . . . Fabricators 20 | . . . . . . . . . . . . . . . . . 3 . . . . 4 . 4 . . . . 5 . . . 4 Repair Stations 13 | . . . . . . . . . . . . . . 2 . . 1 . . . . 8 . 2 . . . . . . . . . Recycling Units 20 | . . 1 . . . . 2 . . . . 1 . 6 . . 2 2 . . . 2 . . . . . . 4 . . . . Scanalyzers 34 | . . . . . . 6 . . . . . 2 . . . . 6 . . . . 5 . 3 . . . . . 9 . . 3 Garrison Access 12 | . . . . . . . . . . . . 3 . . . . . . . . . 2 . . . . . . . 4 3 . . Terminal Hacks 101 | . 7 1 . 2 . 5 4 . 1 3 . . . . . . . . . 25 . . . . 6 1 46 . . . . . . Record 69 | . . . . 2 . . . . . . . . . . . . . . . 25 . . . . 6 . 36 . . . . . . Part Schematic 6 | . 1 . . . . . . . . 3 . . . . . . . . . . . . . . . . 2 . . . . . . Robot Analysis 5 | . . . . . . . 1 . . . . . . . . . . . . . . . . . . . 4 . . . . . . Prototype ID Bank 8 | . 2 . . . . 2 . . . . . . . . . . . . . . . . . . . . 4 . . . . . . Open Door 2 | . . . . . . . . . 1 . . . . . . . . . . . . . . . . 1 . . . . . . . Level Access Points 1 | . . . . . . 1 . . . . . . . . . . . . . . . . . . . . . . . . . . . Unreport Threat 1 | . . . . . . . 1 . . . . . . . . . . . . . . . . . . . . . . . . . . Reprogram Traps 1 | . 1 . . . . . . . . . . . . . . . . . . . . . . . . . . . . . . . . Dispatch Records 1 | . . 1 . . . . . . . . . . . . . . . . . . . . . . . . . . . . . . . Assault Status 1 | . . . . . . 1 . . . . . . . . . . . . . . . . . . . . . . . . . . . Recall Investigation 1 | . 1 . . . . . . . . . . . . . . . . . . . . . . . . . . . . . . . . Hauler Manifests 1 | . 1 . . . . . . . . . . . . . . . . . . . . . . . . . . . . . . . . Registered Prototypes 1 | . . . . . . . 1 . . . . . . . . . . . . . . . . . . . . . . . . . . Zone Layout 3 | . 1 . . . . 1 1 . . . . . . . . . . . . . . . . . . . . . . . . . . Fabricator Hacks 9 | . . . . . . . . . . . . . . . . . 1 . . . . 3 . 2 . . . . 2 . . . 1 Load Schematic 5 | . . . . . . . . . . . . . . . . . 1 . . . . 1 . 1 . . . . 1 . . . 1 Build 4 | . . . . . . . . . . . . . . . . . . . . . . 2 . 1 . . . . 1 . . . . Repair Station Hacks 10 | . . . . . . . . . . . . . . 2 . . 1 . . . . 5 . 2 . . . . . . . . . Scan Component 6 | . . . . . . . . . . . . . . 1 . . 1 . . . . 3 . 1 . . . . . . . . . Repair 4 | . . . . . . . . . . . . . . 1 . . . . . . . 2 . 1 . . . . . . . . . Recycling Unit Hacks 18 | . . 1 . . . . 1 . . . . 1 . 6 . . 2 2 . . . 2 . . . . . . 3 . . . . Recycle Component 3 | . . . . . . . . . . . . . . 2 . . 1 . . . . . . . . . . . . . . . . Process 1 | . . . . . . . . . . . . . . 1 . . . . . . . . . . . . . . . . . . . Report Inventory 10 | . . 1 . . . . 1 . . . . 1 . 2 . . 1 1 . . . 1 . . . . . . 2 . . . . Retrieve Components 4 | . . . . . . . . . . . . . . 1 . . . 1 . . . 1 . . . . . . 1 . . . . Scanalyzer 27 | . . . . . . 6 . . . . . 2 . . . . 6 . . . . 3 . 2 . . . . . 6 . . 2 Insert Component 13 | . . . . . . 3 . . . . . 1 . . . . 3 . . . . 2 . 1 . . . . . 2 . . 1 Analyze 14 | . . . . . . 3 . . . . . 1 . . . . 3 . . . . 1 . 1 . . . . . 4 . . 1 Garrison Access Hacks 7 | . . . . . . . . . . . . 2 . . . . . . . . . 2 . . . . . . . 2 1 . . Unlock Access 4 | . . . . . . . . . . . . 1 . . . . . . . . . 1 . . . . . . . 1 1 . . Coupler Status 3 | . . . . . . . . . . . . 1 . . . . . . . . . 1 . . . . . . . 1 . . . Unauthorized Hacks 2 | . . 2 . . . . . . . . . . . . . . . . . . . . . . . . . . . . . . . Terminals 1 | . . 1 . . . . . . . . . . . . . . . . . . . . . . . . . . . . . . . Search 1 | . . 1 . . . . . . . . . . . . . . . . . . . . . . . . . . . . . . . Fabricators . | . . . . . . . . . . . . . . . . . . . . . . . . . . . . . . . . . . Repair Stations . | . . . . . . . . . . . . . . . . . . . . . . . . . . . . . . . . . . Recycling Units . | . . . . . . . . . . . . . . . . . . . . . . . . . . . . . . . . . . Scanalyzers . | . . . . . . . . . . . . . . . . . . . . . . . . . . . . . . . . . . Garrison Access . | . . . . . . . . . . . . . . . . . . . . . . . . . . . . . . . . . . Data Cores Recovered 1 | . . . . . . . . . . . . . . . . . . 1 . . . . . . . . . . . . . . . Used . | . . . . . . . . . . . . . . . . . . . . . . . . . . . . . . . . . . Hacking Detections 28 | . 3 . . . . 2 3 . . . . 1 . 2 . . 4 . . . . 4 . 2 . . . . 1 3 1 . 2 Full Trace Events 3 | . 1 . . . . . . . . . . . . . . . 1 . . . . . . . . . . . . . . . 1 Feedback Events 1 | . 1 . . . . . . . . . . . . . . . . . . . . . . . . . . . . . . . . Corruption 1 | . 1 . . . . . . . . . . . . . . . . . . . . . . . . . . . . . . . . Feedback Blocked . | . . . . . . . . . . . . . . . . . . . . . . . . . . . . . . . . . . Robot Schematics Acquired 28 | . . . . . . . . . . . . . . . . . 8 8 4 . . . . . . . . . . 8 . . . Robots Built . | . . . . . . . . . . . . . . . . . . . . . . . . . . . . . . . . . . Matter . | . . . . . . . . . . . . . . . . . . . . . . . . . . . . . . . . . . Time . | . . . . . . . . . . . . . . . . . . . . . . . . . . . . . . . . . . Total Robot Build Rating . | . . . . . . . . . . . . . . . . . . . . . . . . . . . . . . . . . . Part Schematics Acquired 97 | . 1 . . . . 3 . . . 3 . 1 . . . . 26 16 . . 28 1 . 1 . . 2 . . 14 . . 1 Parts Built 4 | . . . . . . . . . . . . . . . . . . . . . . 2 . 1 . . . . 1 . . . . Matter 1173 | . . . . . . . . . . . . . . . . . . . . . . 570 . 318 . . . . 285 . . . . Time 286 | . . . . . . . . . . . . . . . . . . . . . . 152 . 84 . . . . 50 . . . . Total Part Build Rating 21 | . . . . . . . . . . . . . . . . . . . . . . 10 . 6 . . . . 5 . . . . Parts Repaired 4 | . . . . . . . . . . . . . . 1 . . . . . . . 2 . 1 . . . . . . . . . Time 144 | . . . . . . . . . . . . . . 32 . . . . . . . 44 . 68 . . . . . . . . . Parts Recycled 3 | . . . . . . . . . . . . . . 2 . . 1 . . . . . . . . . . . . . . . . Recycled Matter . | . . . . . . . . . . . . . . . . . . . . . . . . . . . . . . . . . . Retrieved Matter . | . . . . . . . . . . . . . . . . . . . . . . . . . . . . . . . . . . Retrieved Components 17 | . . . . . . . . . . . . . . 3 . . . 9 . . . 2 . . . . . . 3 . . . . Parts Scanalyzed 13 | . . . . . . 3 . . . . . 1 . . . . 3 . . . . 2 . 1 . . . . . 2 . . 1 Part Schematics Acquired 12 | . . . . . . 3 . . . . . 1 . . . . 3 . . . . 1 . 1 . . . . . 2 . . 1 Parts Damaged . | . . . . . . . . . . . . . . . . . . . . . . . . . . . . . . . . . . Bothacking | -11 -10 -9 -9 -9 -8 -8 -7 -7 -7 -7 -6 -6 -6 -6 -6 -6 -5 -5 -5 -5 -5 -4 -4 -4 -4 -4 -4 -3 -3 -3 -2 -2 -2 ------------ Run | Scr Mat Mat Min Exi Min Mat Fac Low Low Zio Pro Fac Gar Fac Low Low Fac Ext Cet Arc Hub Fac Gar Fac Upp Upp Zhi Pro Res Qua Res Gar Res Used RIF Installer . | . . . . . . . . . . . . . . . . . . . . . . . . . . . . . . . . . . Robots Hacked . | . . . . . . . . . . . . . . . . . . . . . . . . . . . . . . . . . . Non-combat . | . . . . . . . . . . . . . . . . . . . . . . . . . . . . . . . . . . Combat . | . . . . . . . . . . . . . . . . . . . . . . . . . . . . . . . . . . Robot Hacks Applied . | . . . . . . . . . . . . . . . . . . . . . . . . . . . . . . . . . . Relay Couplers Released 11 | . . . . . . . . . . . . . 4 . . . . . . . . . 3 . . . . . . . . 4 . Machine Destruction 11 | . . . . . . . . . . . . . 4 . . . . . . . . . 3 . . . . . . . . 4 . Robots Rewired . | . . . . . . . . . . . . . . . . . . . . . . . . . . . . . . . . . . Allies Hacked 1 | . . . . . . . . . . . . . . . . . . . 1 . . . . . . . . . . . . . . Hacks Repelled . | . . . . . . . . . . . . . . . . . . . . . . . . . . . . . . . . . . Allies | -11 -10 -9 -9 -9 -8 -8 -7 -7 -7 -7 -6 -6 -6 -6 -6 -6 -5 -5 -5 -5 -5 -4 -4 -4 -4 -4 -4 -3 -3 -3 -2 -2 -2 -------- Run | Scr Mat Mat Min Exi Min Mat Fac Low Low Zio Pro Fac Gar Fac Low Low Fac Ext Cet Arc Hub Fac Gar Fac Upp Upp Zhi Pro Res Qua Res Gar Res Total Allies 74 | . . . . . . . . . . 6 . 3 . 2 . . 6 17 7 . 9 11 . 2 . . . . 9 . . . 2 Largest Group 17 | . . . . . . . . . . 6 6 9 5 2 2 2 6 13 13 13 17 6 4 4 2 1 1 1 7 7 6 6 4 Highest-Rated Group 669 | . . . . . . . . . . 339 339 549 342 84 84 84 191 446 441 441 669 307 207 122 68 36 36 36 435 435 405 405 132 Highest-Rated Ally 99 | . . . . . . . . . . 94 94 94 94 42 42 42 42 85 85 42 99 96 90 39 36 36 36 36 96 96 96 96 37 Zionite Dispatches 30 | . . . . . . . . . . . . 1 . 1 . . 4 4 3 . 3 4 . 2 . . . . 5 . . . 3 Heavy 1 | . . . . . . . . . . . . . . . . . . 1 . . . . . . . . . . . . . . . Light 4 | . . . . . . . . . . . . 1 . . . . . . . . 1 1 . . . . . . 1 . . . . Recon 3 | . . . . . . . . . . . . . . . . . 2 . . . . . . . . . . . . . . . 1 Fire 5 | . . . . . . . . . . . . . . . . . . 1 . . 1 2 . . . . . . 1 . . . . Hacker 3 | . . . . . . . . . . . . . . 1 . . . . 2 . . . . . . . . . . . . . . Demo 2 | . . . . . . . . . . . . . . . . . 1 . . . 1 . . . . . . . . . . . . Thermal Resupply 2 | . . . . . . . . . . . . . . . . . 1 . . . . . . . . . . . 1 . . . . Explosive Resupply 1 | . . . . . . . . . . . . . . . . . . 1 . . . . . . . . . . . . . . . Melee Resupply 1 | . . . . . . . . . . . . . . . . . . . . . . 1 . . . . . . . . . . . Trap Resupply 3 | . . . . . . . . . . . . . . . . . . 1 . . . . . . . . . . 1 . . . 1 Resource Resupply 1 | . . . . . . . . . . . . . . . . . . . . . . . . 1 . . . . . . . . . Infowar Resupply 2 | . . . . . . . . . . . . . . . . . . . 1 . . . . . . . . . 1 . . . . Hacking Resupply 1 | . . . . . . . . . . . . . . . . . . . . . . . . 1 . . . . . . . . . Zionite Resupply 1 | . . . . . . . . . . . . . . . . . . . . . . . . . . . . . . . . . 1 Total Orders 11 | . . . . . . . . . . . . . . . . . . . . . . . . 5 4 . . . . . . . 2 FOLLOW 3 | . . . . . . . . . . . . . . . . . . . . . . . . 2 1 . . . . . . . . EXPLORE 8 | . . . . . . . . . . . . . . . . . . . . . . . . 3 3 . . . . . . . 2 Ally Attacks 275 | . . . . . . . . . . . 2 . 41 . 1 . 24 27 15 11 86 2 18 1 3 . . . . . . 44 . Total Damage 9046 | . . . . . . . . . . . . . 1115 . 239 . 1772 816 466 834 2145 106 371 . 21 . . . . . . 1161 . Kills 56 | . . . . . . . . . . . . . 7 . 2 . 10 5 2 4 17 . 2 . . . . . . . . 7 . Allies Corrupted 8 | . . . . . . . . . . . . 3 . . . . . . . . 3 1 . . . . . . 1 . . . . Allies Melted . | . . . . . . . . . . . . . . . . . . . . . . . . . . . . . . . . . . Intel | -11 -10 -9 -9 -9 -8 -8 -7 -7 -7 -7 -6 -6 -6 -6 -6 -6 -5 -5 -5 -5 -5 -4 -4 -4 -4 -4 -4 -3 -3 -3 -2 -2 -2 ------- Run | Scr Mat Mat Min Exi Min Mat Fac Low Low Zio Pro Fac Gar Fac Low Low Fac Ext Cet Arc Hub Fac Gar Fac Upp Upp Zhi Pro Res Qua Res Gar Res Robot Analysis Total 5 | . . . . . . . 1 . . . . . . . . . . . . . . . . . . . 4 . . . . . . Derelict Logs Recovered 10 | . . . . . . . . 1 2 2 1 . . . 2 . . . . . . . . . 2 . . . . . . . . Drone Launches 13 | . . . . . . . . . . . . . . . . . 4 . . . . . . 9 . . . . . . . . . Drone Recoveries . | . . . . . . . . . . . . . . . . . . . . . . . . . . . . . . . . . . Zionite Intel Received 30 | . . . . . . . . . . . . . . . . . 10 6 1 . 4 . . 1 . . . . 1 7 . . . Branch Access 1 | . . . . . . . . . . . . . . . . . 1 . . . . . . . . . . . . . . . . Emergency Access 1 | . . . . . . . . . . . . . . . . . . 1 . . . . . . . . . . . . . . . Guard Positions 2 | . . . . . . . . . . . . . . . . . . . . . . . . 1 . . . . . 1 . . . Component Stockpiles 1 | . . . . . . . . . . . . . . . . . 1 . . . . . . . . . . . . . . . . Prototype Stockpiles 1 | . . . . . . . . . . . . . . . . . 1 . . . . . . . . . . . . . . . . Component Schematics 2 | . . . . . . . . . . . . . . . . . . 1 . . 1 . . . . . . . . . . . . Prototype Schematics 4 | . . . . . . . . . . . . . . . . . 2 . . . 1 . . . . . . . . 1 . . . Unaware Schematics 7 | . . . . . . . . . . . . . . . . . 2 2 1 . . . . . . . . . . 2 . . . Unaware Analyses 4 | . . . . . . . . . . . . . . . . . 1 1 . . 1 . . . . . . . . 1 . . . Trap Installations 1 | . . . . . . . . . . . . . . . . . . . . . . . . . . . . . 1 . . . . Active Terminals 1 | . . . . . . . . . . . . . . . . . . . . . 1 . . . . . . . . . . . . Active Garrisons 2 | . . . . . . . . . . . . . . . . . 1 . . . . . . . . . . . . 1 . . . Depthwide Sectors/0 1 | . . . . . . . . . . . . . . . . . . . . . . . . . . . . . . 1 . . . Depthwide Sectors/-1 2 | . . . . . . . . . . . . . . . . . 1 1 . . . . . . . . . . . . . . . Exploration | -11 -10 -9 -9 -9 -8 -8 -7 -7 -7 -7 -6 -6 -6 -6 -6 -6 -5 -5 -5 -5 -5 -4 -4 -4 -4 -4 -4 -3 -3 -3 -2 -2 -2 ------------- Run | Scr Mat Mat Min Exi Min Mat Fac Low Low Zio Pro Fac Gar Fac Low Low Fac Ext Cet Arc Hub Fac Gar Fac Upp Upp Zhi Pro Res Qua Res Gar Res Turns Passed 9857 | 128 159 108 10 347 66 188 396 395 164 855 323 171 142 170 304 24 728 721 293 91 230 655 200 397 264 234 100 370 616 280 19 454 255 Spaces Moved 18548 | 175 232 162 26 638 112 193 609 640 448 1851 623 270 279 328 831 78 1320 1163 551 154 414 1171 331 612 578 581 207 1004 1148 716 56 478 569 Core 303 | 175 128 . . . . . . . . . . . . . . . . . . . . . . . . . . . . . . . . Treads . | . . . . . . . . . . . . . . . . . . . . . . . . . . . . . . . . . . Legs . | . . . . . . . . . . . . . . . . . . . . . . . . . . . . . . . . . . Wheels . | . . . . . . . . . . . . . . . . . . . . . . . . . . . . . . . . . . Hover . | . . . . . . . . . . . . . . . . . . . . . . . . . . . . . . . . . . Flight 18245 | . 104 162 26 638 112 193 609 640 448 1851 623 270 279 328 831 78 1320 1163 551 154 414 1171 331 612 578 581 207 1004 1148 716 56 478 569 Fastest Speed 26 | 50 37 37 37 37 37 34 34 31 31 31 31 31 31 31 31 31 31 31 28 28 28 28 28 28 28 28 28 28 28 26 26 26 26 Average Speed 30 | 50 44 37 37 37 37 34 34 33 31 33 33 31 31 31 31 31 31 31 30 28 28 28 28 28 28 28 28 28 28 26 26 26 26 Slowest Speed 114 | 50 50 37 37 37 37 37 37 34 31 34 34 31 31 31 31 31 114 114 31 28 28 31 28 28 28 28 28 28 31 28 26 26 26 Overloaded Moves . | . . . . . . . . . . . . . . . . . . . . . . . . . . . . . . . . . . Propulsion Burnouts . | . . . . . . . . . . . . . . . . . . . . . . . . . . . . . . . . . . Robots Hopped 12 | . . . . . . 3 . . . . . . . . . . 2 1 . . . . . 1 1 . . . 1 1 . . 2 Cave-ins Triggered 5 | . . . . . . . 1 . . . . . . . . . . 2 . . . . . . . . . . . . . . 2 Teleports 2 | . . . . . . . . . . . . . . . . . . . . . . . . . . . 1 . . 1 . . . Exploration Rate (%) 48 | 4 37 21 7 92 28 23 16 67 58 90 72 8 42 13 90 12 43 80 97 98 46 29 46 18 84 77 62 92 28 56 1 71 24 Regions Visited 33 Branch Regions 18 Pre-discovered Areas 20 | . . . . . . . . . 1 2 . . . . . . 5 5 . . . . . . 1 . 3 . . 3 . . . Known Exits Taken 30 | 1 1 1 1 1 1 1 1 1 1 1 1 1 . 1 1 1 1 1 1 1 1 1 . 1 1 1 1 1 1 1 1 . . Unknown Exits Taken . | . . . . . . . . . . . . . . . . . . . . . . . . . . . . . . . . . . Scrap Searched 23 | . . . . . . . . 3 . 2 3 . . . 3 2 . . . . . . . . 1 4 . 5 . . . . . Spaces Dug 292 | . . . . . 5 18 52 7 . 1 . 2 . 7 . . 27 55 2 1 7 25 . 2 . 1 . . 49 . . . 31 Terrain Destroyed 613 | . . 34 . . 5 52 68 7 . 1 . 2 . 7 . . 27 55 2 1 181 25 . 2 . 1 . . 112 . . . 31 Melee 222 | . . . . . . . 12 7 . 1 . 2 . . . . 27 55 2 1 7 25 . 2 . 1 . . 49 . . . 31 Projectile 32 | . . . . . 5 18 9 . . . . . . . . . . . . . . . . . . . . . . . . . . AOE 359 | . . 34 . . . 34 47 . . . . . . 7 . . . . . . 174 . . . . . . . 63 . . . . Actions | -11 -10 -9 -9 -9 -8 -8 -7 -7 -7 -7 -6 -6 -6 -6 -6 -6 -5 -5 -5 -5 -5 -4 -4 -4 -4 -4 -4 -3 -3 -3 -2 -2 -2 --------- Run | Scr Mat Mat Min Exi Min Mat Fac Low Low Zio Pro Fac Gar Fac Low Low Fac Ext Cet Arc Hub Fac Gar Fac Upp Upp Zhi Pro Res Qua Res Gar Res Total 21769 | 200 265 186 25 748 119 238 701 762 463 2073 719 353 321 392 865 77 1565 1417 649 193 501 1473 415 825 667 643 243 1071 1363 789 59 769 620 Wait 1641 | 5 9 6 . 109 . 9 20 41 1 158 69 80 5 48 9 . 96 75 49 22 16 204 35 182 76 40 24 14 78 17 . 142 2 Move 18483 | 174 231 161 25 637 111 186 607 639 447 1850 622 269 278 327 830 77 1315 1159 550 153 413 1169 330 609 575 580 206 1003 1145 713 55 475 562 Hop 12 | . . . . . . 3 . . . . . . . . . . 2 1 . . . . . 1 1 . . . 1 1 . . 2 Pick Up 79 | . 2 . . 1 1 . 4 3 . 4 1 . 2 1 4 . 9 3 1 . 6 3 . 3 . 4 1 2 11 7 1 5 . Fast Attach 121 | 7 5 4 . . . 5 6 2 2 20 1 . . 8 1 . 14 6 3 . 4 13 . 4 . . 2 6 2 6 . . . Attach 35 | . . . . . . . . 1 . 1 . 1 . . . . 7 4 2 . 3 4 . . . . . . 5 6 . 1 . Detach 29 | . . . . . . . 1 . . 1 . . . 1 . . 6 4 2 . 2 5 . . . . . 2 2 3 . . . Swap 101 | . . . . . 1 3 10 3 . 8 . . . . 1 . 9 . 3 . 8 5 1 4 . 8 2 7 9 7 2 8 2 Drop 152 | 2 1 1 . 1 . 4 9 4 1 23 2 . . 5 4 . 20 5 4 . 10 12 . 5 . 3 . 8 13 10 1 4 . Fire 107 | 12 14 14 . . 6 28 30 . . 1 . . . 1 . . . . . . 1 . . . . . . . . . . . . Melee 590 | . . . . . . . 13 35 5 7 15 3 11 1 11 . 69 92 23 6 30 33 23 10 11 5 4 18 74 14 . 31 46 Ram . | . . . . . . . . . . . . . . . . . . . . . . . . . . . . . . . . . . Kick . | . . . . . . . . . . . . . . . . . . . . . . . . . . . . . . . . . . Crush . | . . . . . . . . . . . . . . . . . . . . . . . . . . . . . . . . . . Escape Stasis 154 | . . . . . . . 1 . . . . . 18 . . . . 37 . . . 1 15 . . . . . . . . 80 2 Rewire . | . . . . . . . . . . . . . . . . . . . . . . . . . . . . . . . . . . Trap 16 | . . . . . . . . . . . . . . . . . . . . . . . . . . . . . 16 . . . . Miscellaneous 249 | . 3 . . . . . . 34 7 . 9 . 7 . 5 . 18 31 12 12 8 24 11 7 4 3 4 11 7 5 . 23 4 Route ------- -11/Scrapyard -10/Materials -9/Materials -9/Mines -9/Exiles (discovered 2 exits: *Min x2) -8/Mines -8/Materials (discovered 3 exits: *Fac x3) -7/Factory -7/Lower Caves -7/Lower Caves (discovered 2 exits: *Fac / *Zio) -7/Zion -6/Proximity Caves -6/Factory (discovered 3 exits: Fac x2 / Gar) -6/Garrison -6/Factory -6/Lower Caves -6/Lower Caves -5/Factory (discovered 4 exits: Upp x2 / *Ext x2) -5/Extension (discovered 2 exits: *Fac / *Cet) -5/Cetus (discovered 3 exits: *Fac x2 / *Arc) -5/Archives (discovered 3 exits: *Fac / *Hub x2) -5/Hub_04(d) -4/Factory -4/Garrison -4/Factory -4/Upper Caves -4/Upper Caves -4/Zhirov -3/Proximity Caves -3/Research -3/Quarantine (discovered 2 exits: *Res / Gar) -2/Research -2/Garrison (discovered 3 exits: *Res x3) -2/Research History --------- Turn | Location | Event 4 | -11/Scrapyard | Identified exit to Materials 4 | -11/Scrapyard | Discovered exit to Materials (range 14) 110 | -11/Scrapyard | Upgraded with Utility slot (x1) 120 | -11/Scrapyard | Upgraded with Utility slot (x1) 129 | -11/Scrapyard | Entered Materials 232 | -10/Materials | Upgraded with Propulsion slot (x1) 276 | -10/Materials | Identified exit to Materials 276 | -10/Materials | Discovered exit to Materials (range 5) 281 | -10/Materials | Upgraded with Weapon slot (x1) 288 | -10/Materials | Entered another Materials area 290 | -9/Materials | Reached level 2 290 | -9/Materials | Reached level 3 293 | -9/Materials | Upgraded with Utility slot (x1) 312 | -9/Materials | Upgraded with Utility slot (x1) 334 | -9/Materials | Build established: Hacker-Mutant 336 | -9/Materials | Reached level 4 339 | -9/Materials | Upgraded with Propulsion slot (x1) 366 | -9/Materials | Destroyed 9 combat bots 391 | -9/Materials | Identified exit to Mines 391 | -9/Materials | Discovered exit to Mines (range 13) 396 | -9/Materials | Entered Mines 404 | -9/Mines | Deemed a non-threat by the Exiles lab entrance 404 | -9/Mines | Identified exit to Exiles 404 | -9/Mines | Discovered exit to Exiles (range 5) 406 | -9/Mines | Entered Exiles 412 | -9/Exiles | Identified exit to Mines 412 | -9/Exiles | Discovered exit to Mines (range 14) 426 | -9/Exiles | Met 8R-AWN 432 | -9/Exiles | Met EX-HEX 459 | -9/Exiles | Met EX-DEC 468 | -9/Exiles | Visited The Gauntlet 529 | -9/Exiles | Met EX-BIN 662 | -9/Exiles | Build established: Hacker-Scout 705 | -9/Exiles | Discovered exit to Mines (range 14) 753 | -9/Exiles | Entered Mines 755 | -8/Mines | Reached level 5 816 | -8/Mines | Identified exit to Materials 816 | -8/Mines | Discovered exit to Materials (range 9) 819 | -8/Mines | Entered Materials 821 | -8/Materials | Reached level 6 821 | -8/Materials | Reached level 7 895 | -8/Materials | Identified exit to Factory 913 | -8/Materials | Upgraded with Power slot (x1) 913 | -8/Materials | Upgraded with Utility slot (x1) 1007 | -8/Materials | Entered Factory 1009 | -7/Factory | Reached level 8 1009 | -7/Factory | Reached level 9 1118 | -7/Factory | Crushed by falling debris 1119 | -7/Factory | Core integrity fell below 50% 1209 | -7/Factory | Upgraded with Propulsion slot (x1) 1237 | -7/Factory | Core integrity fell below 20% 1395 | -7/Factory | Identified exit to Lower Caves 1395 | -7/Factory | Discovered exit to Lower Caves (range 16) 1400 | -7/Factory | Reached level 10 1403 | -7/Factory | Entered Lower Caves 1448 | -7/Lower Caves | Learned Factory security intel 1479 | -7/Lower Caves | Upgraded with Weapon slot (x1) 1517 | -7/Lower Caves | Ambushed by wild Derelicts 1568 | -7/Lower Caves | Build established: Hacker-Ninja 1686 | -7/Lower Caves | Attracted the attention of an 0b10 outpost 1797 | -7/Lower Caves | Identified exit to Lower Caves 1797 | -7/Lower Caves | Discovered exit to Lower Caves (range 6) 1798 | -7/Lower Caves | Entered another Lower Caves area 1800 | -7/Lower Caves | Reached level 11 1800 | -7/Lower Caves | Learned 4 Factory zone layouts 1805 | -7/Lower Caves | Encountered a Warlord checkpoint 1811 | -7/Lower Caves | Identified exit to Factory 1811 | -7/Lower Caves | Discovered exit to Factory (range 16) 1948 | -7/Lower Caves | Upgraded with Utility slot (x1) 1960 | -7/Lower Caves | Identified exit to Zion 1960 | -7/Lower Caves | Discovered exit to Zion (range 5) 1962 | -7/Lower Caves | Entered Zion 1976 | -7/Zion | Identified exit to Proximity Caves 1976 | -7/Zion | Discovered exit to Proximity Caves (range 16) 2023 | -7/Zion | System corruption cleaned by Quarantine Array 2046 | -7/Zion | Build established: Scavenger-Scout 2065 | -7/Zion | Found Prototype Processor 2065 | -7/Zion | Identified Exp. Signal Interpreter 2067 | -7/Zion | Found Prototype Processor 2067 | -7/Zion | Identified Exp. Melee Analysis Suite 2069 | -7/Zion | Found Exp. Melee Analysis Suite 2071 | -7/Zion | Found Prototype Processor 2071 | -7/Zion | Identified Exp. Core Analyzer 2077 | -7/Zion | Found Prototype Processor 2077 | -7/Zion | Identified Exp. Armor Integrity Analyzer 2092 | -7/Zion | Found Exp. Core Analyzer 2110 | -7/Zion | Learned location of Warlord (-5) 2151 | -7/Zion | Learned location of 1 exit from Lower Caves 2201 | -7/Zion | Received a visual enhancement algorithm 2227 | -7/Zion | Learned location of Recycling (-7) 2234 | -7/Zion | Learned location of 1 exit from Lower Caves 2261 | -7/Zion | Given A8's code to call for help 2279 | -7/Zion | Enhanced Grunt warped into view, answering call for help 2280 | -7/Zion | Enhanced Grunt warped into view, answering call for help 2382 | -7/Zion | Build established: Hacker-Mutant 2471 | -7/Zion | Reached level 12 2473 | -7/Zion | Upgraded with Weapon slot (x1) 2477 | -7/Zion | Imprinted 2479 | -7/Zion | Declared Zion's savior 2579 | -7/Zion | Found Prototype Energy Gun 2579 | -7/Zion | Identified Storm Laser 2783 | -7/Zion | Build established: Messiah-Mutant 2817 | -7/Zion | Entered Proximity Caves 2817 | -6/Proximity Caves | Accompanied by 6 allies 2819 | -6/Proximity Caves | Reached level 13 2835 | -6/Proximity Caves | Spotted B-75 Beast 2841 | -6/Proximity Caves | Destroyed B-75 Beast 2957 | -6/Proximity Caves | Attracted the attention of an 0b10 checkpoint 3056 | -6/Proximity Caves | Learned location of 2 exits from Factory 3082 | -6/Proximity Caves | Discovered exit to Factory (range 9) 3140 | -6/Proximity Caves | Entered Factory 3140 | -6/Factory | Accompanied by 6 allies 3141 | -6/Factory | Identified exit to Factory 3142 | -6/Factory | Reached level 14 3142 | -6/Factory | Upgraded with Utility slot (x1) 3149 | -6/Factory | Reached level 15 3189 | -6/Factory | Zion Light squad teleported in 3256 | -6/Factory | Identified exit to Garrison 3311 | -6/Factory | Entered Garrison 3311 | -6/Garrison | Accompanied by 5 allies 3349 | -6/Garrison | Garrison Relay disabled 3354 | -6/Garrison | Triggered checkpoint 3372 | -6/Garrison | Build established: Messiah-Sprinter 3388 | -6/Garrison | Triggered checkpoint 3390 | -6/Garrison | Spotted B-75 Beast 3398 | -6/Garrison | Triggered checkpoint 3403 | -6/Garrison | Reached level 16 3412 | -6/Garrison | Allies destroyed B-75 Beast 3438 | -6/Garrison | Garrison Relay disabled 3446 | -6/Garrison | Triggered checkpoint 3450 | -6/Garrison | Identified exit to Factory 3450 | -6/Garrison | Discovered exit to Factory (range 8) 3453 | -6/Garrison | Entered Factory 3455 | -6/Factory | Upgraded with Weapon slot (x1) 3468 | -6/Factory | Upgraded with Utility slot (x1) 3513 | -6/Factory | Repaired Mni. Grenade Launcher 3540 | -6/Factory | Zion Hacker squad teleported in 3605 | -6/Factory | Identified exit to Lower Caves 3605 | -6/Factory | Discovered exit to Lower Caves (range 16) 3623 | -6/Factory | Entered Lower Caves 3623 | -6/Lower Caves | Accompanied by 2 allies 3624 | -6/Lower Caves | Identified exit to Lower Caves 3725 | -6/Lower Caves | Learned 8 Factory zone layouts 3816 | -6/Lower Caves | Reached level 17 3911 | -6/Lower Caves | Learned Factory terminal intel 3912 | -6/Lower Caves | Attracted the attention of an 0b10 outpost 3927 | -6/Lower Caves | Entered another Lower Caves area 3927 | -6/Lower Caves | Accompanied by 2 allies 3951 | -6/Lower Caves | Entered Factory 3951 | -5/Factory | Accompanied by 2 allies 3953 | -5/Factory | Loaded intel: 22 terminal locations 3953 | -5/Factory | Reached level 18 3962 | -5/Factory | Upgraded with Utility slot (x1) 4011 | -5/Factory | Zion Recon squad teleported in 4084 | -5/Factory | Zion Demo squad teleported in 4181 | -5/Factory | Retrieved Zion intel report: Unaware Analyses 4182 | -5/Factory | Zion Thermal Resupply teleported in 4192 | -5/Factory | Retrieved Zion intel report: Depthwide Sectors/-1 4204 | -5/Factory | Retrieved Zion intel report: Prototype Stockpiles 4225 | -5/Factory | Allied Derelicts emerged from ambush trap array 4226 | -5/Factory | Retrieved Zion intel report: Active Garrisons 4263 | -5/Factory | Retrieved Zion intel report: Component Stockpiles 4292 | -5/Factory | Reached level 19 4318 | -5/Factory | Retrieved Zion intel report: Branch Access 4318 | -5/Factory | Identified exit to Upper Caves 4318 | -5/Factory | Identified exit to Extension 4460 | -5/Factory | Retrieved Zion intel report: Prototype Schematics 4472 | -5/Factory | Retrieved Zion intel report: Unaware Schematics 4508 | -5/Factory | Retrieved Zion intel report: Prototype Schematics 4509 | -5/Factory | Zion Recon squad teleported in 4551 | -5/Factory | First assault squad dispatched 4628 | -5/Factory | Retrieved Zion intel report: Unaware Schematics 4679 | -5/Factory | Entered Extension 4679 | -5/Extension | Accompanied by 3 allies 4681 | -5/Extension | Reached level 20 4686 | -5/Extension | Disrupted transfer network 4704 | -5/Extension | Zion Fire squad teleported in 4804 | -5/Extension | Upgraded with Weapon slot (x1) 4823 | -5/Extension | Destroyed 7 combat bots 4832 | -5/Extension | Crushed by falling debris 4850 | -5/Extension | Retrieved Zion intel report: Unaware Schematics 4851 | -5/Extension | Zion Heavy squad teleported in 4879 | -5/Extension | Zion Trap Resupply teleported in 4894 | -5/Extension | Found Prototype Protection 4894 | -5/Extension | Identified Zio. Weapon Casing 4919 | -5/Extension | Retrieved Zion intel report: Emergency Access 4928 | -5/Extension | Reached level 21 4939 | -5/Extension | Retrieved Zion intel report: Component Schematics 4963 | -5/Extension | Rescued a captive Derelict 4967 | -5/Extension | Retrieved Zion intel report: Unaware Schematics 5004 | -5/Extension | Rescued a captive Derelict 5020 | -5/Extension | Rescued a captive Derelict 5022 | -5/Extension | Rescued a captive Derelict 5033 | -5/Extension | Rescued a captive Derelict 5065 | -5/Extension | Rescued a captive Derelict 5093 | -5/Extension | Rescued a captive Derelict 5096 | -5/Extension | Crushed by falling debris 5111 | -5/Extension | Spotted B-75 Beast 5115 | -5/Extension | Retrieved Zion intel report: Unaware Analyses 5133 | -5/Extension | Rescued a captive Derelict 5134 | -5/Extension | Rescued a captive Derelict 5209 | -5/Extension | Core integrity fell below 50% 5256 | -5/Extension | Retrieved Zion intel report: Depthwide Sectors/-1 5257 | -5/Extension | Zion Explosive Resupply teleported in 5276 | -5/Extension | Identified exit to Factory 5276 | -5/Extension | Discovered exit to Factory (range 10) 5276 | -5/Extension | Identified exit to Cetus 5276 | -5/Extension | Discovered exit to Cetus (range 6) 5400 | -5/Extension | Entered Cetus 5400 | -5/Cetus | Accompanied by 8 allies 5405 | -5/Cetus | Spotted Cetus Guard 5405 | -5/Cetus | Spotted Cetus Guard 5405 | -5/Cetus | Spotted Cetus Guard 5405 | -5/Cetus | Spotted Cetus Guard 5418 | -5/Cetus | Allies destroyed Cetus Guard 5422 | -5/Cetus | Destroyed Cetus Guard 5424 | -5/Cetus | Destroyed Cetus Guard 5432 | -5/Cetus | Destroyed Cetus Guard 5474 | -5/Cetus | Zion Hacker squad teleported in 5476 | -5/Cetus | Zion Hacker squad teleported in 5493 | -5/Cetus | Zion Infowar Resupply teleported in 5504 | -5/Cetus | Retrieved Zion intel report: Unaware Schematics 5525 | -5/Cetus | Reached level 22 5530 | -5/Cetus | Identified exit to Archives 5530 | -5/Cetus | Discovered exit to Archives (range 17) 5601 | -5/Cetus | Discovered exit to Factory (range 16) 5623 | -5/Cetus | Upgraded with Propulsion slot (x1) 5639 | -5/Cetus | Spotted Cetus Guard 5639 | -5/Cetus | Spotted Cetus Guard 5639 | -5/Cetus | Spotted Cetus Guard 5639 | -5/Cetus | Spotted Cetus Guard 5639 | -5/Cetus | Discovered exit to Factory (range 16) 5644 | -5/Cetus | Destroyed Cetus Guard 5647 | -5/Cetus | Destroyed Cetus Guard 5654 | -5/Cetus | Destroyed Cetus Guard 5657 | -5/Cetus | Allies destroyed Cetus Guard 5658 | -5/Cetus | Scared off Revision 17 5693 | -5/Cetus | Entered Archives 5693 | -5/Archives | Accompanied by 13 allies 5714 | -5/Archives | Discovered exit to Factory (range 14) 5716 | -5/Archives | Unable to access archive contents 5716 | -5/Archives | Unable to access archive contents 5717 | -5/Archives | Identified exit to Hub_04(d) 5717 | -5/Archives | Discovered exit to Hub_04(d) (range 15) 5720 | -5/Archives | Unable to access archive contents 5737 | -5/Archives | Discovered exit to Hub_04(d) (range 17) 5738 | -5/Archives | Unable to access archive contents 5784 | -5/Archives | Entered Hub_04(d) 5784 | -5/Hub_04(d) | Accompanied by 10 allies 5788 | -5/Hub_04(d) | Zion Light squad teleported in 5820 | -5/Hub_04(d) | Zion Fire squad teleported in 5837 | -5/Hub_04(d) | Zion Demo squad teleported in 5838 | -5/Hub_04(d) | Disrupted transfer network 5847 | -5/Hub_04(d) | Network Hub disabled 5876 | -5/Hub_04(d) | Spotted B-75 Beast 5885 | -5/Hub_04(d) | Spotted Lightning 5887 | -5/Hub_04(d) | Destroyed B-75 Beast 5891 | -5/Hub_04(d) | Spotted Lightning 5892 | -5/Hub_04(d) | Spotted Lightning 5898 | -5/Hub_04(d) | Reached level 23 5903 | -5/Hub_04(d) | Destroyed Lightning 5907 | -5/Hub_04(d) | Destroyed Lightning 5909 | -5/Hub_04(d) | Found Prototype Processor 5910 | -5/Hub_04(d) | Identified Exp. Targeting Computer 5913 | -5/Hub_04(d) | Found Prototype Device 5913 | -5/Hub_04(d) | Identified Exp. Phase Shifter 5918 | -5/Hub_04(d) | Retrieved Zion intel report: Active Terminals 5940 | -5/Hub_04(d) | Spotted Lightning 5941 | -5/Hub_04(d) | Found Prototype Launcher 5941 | -5/Hub_04(d) | Identified Gui. Missile Launcher 5943 | -5/Hub_04(d) | Spotted Lightning 5944 | -5/Hub_04(d) | Spotted Lightning 5947 | -5/Hub_04(d) | Destroyed 7 combat bots 5981 | -5/Hub_04(d) | Retrieved Zion intel report: Unaware Analyses 5996 | -5/Hub_04(d) | Retrieved Zion intel report: Component Schematics 5997 | -5/Hub_04(d) | Discovered exit to Factory (range 5) 6000 | -5/Hub_04(d) | Retrieved Zion intel report: Prototype Schematics 6014 | -5/Hub_04(d) | Entered Factory 6016 | -4/Factory | Reached level 24 6016 | -4/Factory | Upgraded with Utility slot (x1) 6022 | -4/Factory | Zion Melee Resupply teleported in 6109 | -4/Factory | Repaired Imp. Light Armor Plating 6136 | -4/Factory | Repaired Imp. Maneuvering Thrusters 6155 | -4/Factory | Zion Light squad teleported in 6182 | -4/Factory | Zion Fire squad teleported in 6183 | -4/Factory | Core integrity fell below 50% 6224 | -4/Factory | Zion Fire squad teleported in 6228 | -4/Factory | Found Prototype Slashing Weapon 6229 | -4/Factory | Identified Molecular Scythe 6530 | -4/Factory | Found Prototype Hackware 6531 | -4/Factory | Identified Exp. Hacking Suite 6561 | -4/Factory | Fabricated Biomechanical Wings (x1) 6640 | -4/Factory | Fabricated Biomechanical Wings (x1) 6658 | -4/Factory | Identified exit to Garrison 6669 | -4/Factory | Entered Garrison 6669 | -4/Garrison | Accompanied by 4 allies 6681 | -4/Garrison | Spotted B-86 Titan 6708 | -4/Garrison | Garrison Relay disabled 6710 | -4/Garrison | Triggered checkpoint 6735 | -4/Garrison | Destroyed B-86 Titan 6736 | -4/Garrison | Triggered checkpoint 6767 | -4/Garrison | Reached level 25 6791 | -4/Garrison | Destroyed 9 combat bots 6794 | -4/Garrison | Triggered checkpoint 6804 | -4/Garrison | Garrison Relay disabled 6848 | -4/Garrison | Identified exit to Factory 6848 | -4/Garrison | Discovered exit to Factory (range 12) 6852 | -4/Garrison | Attempted to install RIF, but system incompatible 6869 | -4/Garrison | Entered Factory 6869 | -4/Factory | Accompanied by 2 allies 6872 | -4/Factory | Upgraded with Weapon slot (x1) 7010 | -4/Factory | Repaired Adv. Force Field 7107 | -4/Factory | Fabricated Ionic Axe (x1) 7179 | -4/Factory | Retrieved Zion intel report: Guard Positions 7180 | -4/Factory | Zion Hacking Resupply teleported in 7222 | -4/Factory | Identified exit to Upper Caves 7222 | -4/Factory | Discovered exit to Upper Caves (range 33) 7227 | -4/Factory | Zion Resource Resupply teleported in 7266 | -4/Factory | Entered Upper Caves 7266 | -4/Upper Caves | Accompanied by 5 allies 7370 | -4/Upper Caves | Attracted the attention of an 0b10 base 7396 | -4/Upper Caves | Learned Factory trap positions 7396 | -4/Upper Caves | Learned Factory emergency access door positions 7396 | -4/Upper Caves | Learned Extension trap positions 7396 | -4/Upper Caves | Learned Armory stockpile data 7410 | -4/Upper Caves | Identified exit to Upper Caves 7410 | -4/Upper Caves | Discovered exit to Upper Caves (range 74) 7414 | -4/Upper Caves | Destroyed 7 combat bots 7530 | -4/Upper Caves | Entered another Upper Caves area 7530 | -4/Upper Caves | Accompanied by 1 ally 7578 | -4/Upper Caves | Attacked by a delusional Derelict stockpiling parts 7733 | -4/Upper Caves | Identified exit to Zhirov 7733 | -4/Upper Caves | Discovered exit to Zhirov (range 10) 7764 | -4/Upper Caves | Entered Zhirov 7764 | -4/Zhirov | Accompanied by 1 ally 7764 | -4/Zhirov | Identified exit to Proximity Caves 7764 | -4/Zhirov | Discovered exit to Proximity Caves (range 3) 7770 | -4/Zhirov | Met Zhirov 7770 | -4/Zhirov | Reached level 26 7775 | -4/Zhirov | Learned location of Quarantine (-3) 7775 | -4/Zhirov | Learned location of Testing (-2) 7775 | -4/Zhirov | Learned location of Command (-1) 7781 | -4/Zhirov | Zhirov requested help retrieving the SGEMP Prototype 7786 | -4/Zhirov | Found Alien Artifact 7787 | -4/Zhirov | Identified Integrated Dissipator 7787 | -4/Zhirov | Installed Integrated Dissipator, increased core heat dissipation (+2%) 7792 | -4/Zhirov | Found Alien Artifact 7792 | -4/Zhirov | Identified Transdimensional Reconstructor 7792 | -4/Zhirov | Warped through subspace 7864 | -4/Zhirov | Entered Proximity Caves 7864 | -3/Proximity Caves | Accompanied by 1 ally 8039 | -3/Proximity Caves | Destroyed 7 combat bots 8126 | -3/Proximity Caves | Reached level 27 8127 | -3/Proximity Caves | Attracted the attention of an 0b10 checkpoint 8167 | -3/Proximity Caves | Destroyed 9 combat bots 8171 | -3/Proximity Caves | Spotted B-86 Titan 8174 | -3/Proximity Caves | Destroyed B-86 Titan 8178 | -3/Proximity Caves | Found Hvy. Reflective Plating 8201 | -3/Proximity Caves | Identified exit to Research 8201 | -3/Proximity Caves | Discovered exit to Research (range 14) 8234 | -3/Proximity Caves | Entered Research 8234 | -3/Research | Accompanied by 1 ally 8239 | -3/Research | Zion Infowar Resupply teleported in 8260 | -3/Research | Found Prototype Launcher 8260 | -3/Research | Identified Tesla Bomb Launcher 8340 | -3/Research | Reached level 28 8342 | -3/Research | Upgraded with Utility slot (x1) 8489 | -3/Research | Found Antimissile System 8517 | -3/Research | Retrieved Zion intel report: Trap Installations 8518 | -3/Research | Zion Trap Resupply teleported in 8776 | -3/Research | Zion Light squad teleported in 8800 | -3/Research | Fabricated Cold Fusion Reactor (x1) 8823 | -3/Research | Zion Thermal Resupply teleported in 8829 | -3/Research | Zion Fire squad teleported in 8832 | -3/Research | Identified exit to Quarantine 8832 | -3/Research | Discovered exit to Quarantine (range 5) 8837 | -3/Research | Local fabrication network quarantined 8850 | -3/Research | Entered Quarantine 8850 | -3/Quarantine | Accompanied by 7 allies 8862 | -3/Quarantine | Retrieved Zion intel report: Depthwide Sectors/0 8868 | -3/Quarantine | Retrieved Zion intel report: Unaware Analyses 8892 | -3/Quarantine | Retrieved Zion intel report: Active Garrisons 8926 | -3/Quarantine | Retrieved Zion intel report: Unaware Schematics 8929 | -3/Quarantine | Found Alien Artifact 8930 | -3/Quarantine | Identified Subatomic Replicator 8935 | -3/Quarantine | Used Subatomic Replicator to replicate Electron Diverter 8954 | -3/Quarantine | Found Alien Energy Cannon 8954 | -3/Quarantine | Identified Core Cannon 8971 | -3/Quarantine | Retrieved Zion intel report: Prototype Schematics 8996 | -3/Quarantine | Retrieved Zion intel report: Guard Positions 8996 | -3/Quarantine | Found Alien Artifact 8997 | -3/Quarantine | Identified Hpw. Transdimensional Reconstructor 8997 | -3/Quarantine | Warped through subspace 9020 | -3/Quarantine | Found Alien Slashing Weapon 9020 | -3/Quarantine | Identified Sigix Broadsword 9030 | -3/Quarantine | Retrieved Zion intel report: Unaware Schematics 9036 | -3/Quarantine | Identified exit to Garrison 9059 | -3/Quarantine | Found Alien Artifact 9060 | -3/Quarantine | Identified Dimensional Node Initializer 9060 | -3/Quarantine | Initialized slip node 9073 | -3/Quarantine | Identified exit to Research 9073 | -3/Quarantine | Discovered exit to Research (range 10) 9126 | -3/Quarantine | First assault squad dispatched 9130 | -3/Quarantine | Entered Research 9130 | -2/Research | Accompanied by 6 allies 9132 | -2/Research | Reached level 29 9132 | -2/Research | Reached level 30 9149 | -2/Research | Identified exit to Garrison 9149 | -2/Research | Entered Garrison 9149 | -2/Garrison | Accompanied by 6 allies 9151 | -2/Garrison | Attempted to install RIF, but system incompatible 9163 | -2/Garrison | Spotted B-90 Cyclops 9187 | -2/Garrison | Destroyed B-90 Cyclops 9196 | -2/Garrison | Triggered checkpoint 9200 | -2/Garrison | Triggered checkpoint 9211 | -2/Garrison | Reached level 31 9245 | -2/Garrison | Destroyed 9 combat bots 9254 | -2/Garrison | Triggered checkpoint 9272 | -2/Garrison | Triggered checkpoint 9306 | -2/Garrison | Triggered checkpoint 9319 | -2/Garrison | Identified exit to Research 9319 | -2/Garrison | Discovered exit to Research (range 11) 9355 | -2/Garrison | Attempted to access garrison exit controls, blocked by remote lockdown 9382 | -2/Garrison | Garrison Relay disabled 9440 | -2/Garrison | Discovered exit to Research (range 15) 9478 | -2/Garrison | Attempted to access garrison exit controls, blocked by remote lockdown 9488 | -2/Garrison | Triggered checkpoint 9510 | -2/Garrison | Garrison Relay disabled 9540 | -2/Garrison | Discovered exit to Research (range 12) 9603 | -2/Garrison | Entered Research 9603 | -2/Research | Accompanied by 2 allies 9607 | -2/Research | Zion Zionite Resupply teleported in 9624 | -2/Research | Zion Trap Resupply teleported in 9626 | -2/Research | Zion Recon squad teleported in 9853 | -2/Research | First assault squad dispatched 9853 | -2/Research | Crushed by falling debris 9854 | -2/Research | Core integrity fell below 50% 9858 | -2/Research | Crushed by falling debris 9858 | -2/Research | Smashed by cave-in Last Messages --------------- 09815_ H-88 Terminator destroyed. 09819_ W-44 Eye destroyed. 09821_ R-10 Processor collects Antigrav System. 09822_ Connecting with Fabricator... >>Load(Assault Drone Bay) Uploading Assault Drone Bay schematic... Loaded successfully: Assault Drone Bay Rating: 7p Time: 93 Matter: 351 Initiate build sequence. 09822_ ALERT: Suspicious activity at Fabricator R001. Dispatching Investigation squad. 09853_ ALERT: Significant disruption in Zone 9E, assault force dispatched. 09853_ Detecting system override signal. 09853_ The unstable cave ceiling collapses. 09853_ Crushed by falling debris. 09858_ The unstable cave ceiling collapses. 09858_ Crushed by falling debris. Map ----- +----------------------------------------------------+ | ?????????????????????????????????????????????????? | | ?????????????????????????????????????????????????? | | ??????????????????????C????u??k????w?????????????? | | ?????????????????w????????Aw?????????????????????? | | ?????????????????????????????????????????????????? | | ???????????????????????????u?????????????????????? | | ?????????????????????????????????????????????????? | | ??????????????????????k??????????????????????????? | | ?????????????????????????????????????????????????? | | ?????????????????????????????????????????????????? | | ???????????????????????????o?????????????????????? | | ?????????????????????????????????????????????????? | | ?????????????????????????????????????????????????? | | ?????????????????????????????????????????????????? | | ?????????????????????????????????????????????????? | | ?????????????????????????????????????????????????? | | ?????????????????????????????????????????????????? | | ?????????????????????????????????????????????????? | | ?????????????????????????????????????????????????? | | ?????????????????????????????????????????????????? | | ?????????Y???????????????????????????????????????? | | ?????????????????????????????????????????????????? | | ?????????????????????????????????????????????????? | | ?????????????????????????????????????????????????? | | ????????????????????????###??????????????????????? | | ????????????????????????#@##?????????????????????? | | ????????????????????????## ###???????????????????? | | ?????????????????????????## ####????????????????? | | ??????????????????o??????#### ##???????????????? | | ????????????????????????????#### ##??????????????? | | ???????????????????????????????## ##?????????????? | | ????????????????????????????????##"##########????? | | ?????????????????????????????????##u = #????? | | ??????????????????????????????????# ###### | | ??????????????????????????????????# * """# | | ??????????????????????????????????# """# | | ??????????????????????????????????# """# | | ??????????????????????????????????# # | | ??????????????????????????????????# # # | | ??????????????????????????????????# # # | | ???????????????????????##################/### # | | ???????????????????????# ] # | | ???????????????????????# # | | ???????????????????????# A h # | | ???????????????????????# """ hR # | | ???????????????????????# """ ############### | | ???????????????????????# F" k#?????????????? | | ???????????????????????# "" ##########????? | | ???????????????????????+ !% ?? | | ???????????????????????# ! ?? | +----------------------------------------------------+ Best States ------------- Heat Dissipation 69 Energy Generation 70 Energy Capacity 1350 Matter Stores 300 Matter Capacity 300 Sight Range 17 Robot Scan Range 28 Terrain Scan Range 16 Terrain Scan Density 185 ECM Strength 4 Jamming Range 12 Cloak Strength 3 Armor Coverage 400 Resistance: KI 45 Resistance: TH 45 Resistance: EX 45 Resistance: EM 50 Resistance: I 35 Resistance: S 35 Resistance: P 35 Utility Shielding 33 Point Defense Rating 240 Melee Speed Boost 40 Evasion (%) 74 Melee Accuracy 12 Core Analysis 15 Armor Integrity Analysis 90 Matter Filtering 50 Overload Amplification 50 Overload Regulation 40 Offensive Hacking 41 Defensive Hacking 5 Item Schematics ----------------- Flight Unit | -10/Materials | Hacked Mni. Grenade Launcher | -8/Materials | Scanalyzed Lrg. Battery | -8/Materials | Scanalyzed Hcp. Matter Pod | -8/Materials | Scanalyzed Hvy. Beamcaster | -7/Zion | Free Riot Gun | -7/Zion | Free Flamer | -7/Zion | Free KE Penetrator | -6/Factory | Scanalyzed Cld. Nuclear Pulse Thruster | -5/Factory | Z-intel Imp. Matter Compressor | -5/Factory | Z-intel Adv. Power Amplifier | -5/Factory | Z-intel Imp. Spread Laser | -5/Factory | Z-intel Gui. EMP Blaster | -5/Factory | Z-intel Tiamat Missile Launcher | -5/Factory | Z-intel Hvy. Proton Missile Launcher | -5/Factory | Z-intel Prc. Rocket Launcher | -5/Factory | Z-intel Hvy. Proton Cannon | -5/Factory | Z-intel Enh. Flexi-carbon Leg | -5/Factory | Z-intel Imp. Energy Well | -5/Factory | Z-intel Exp. Heat Sink | -5/Factory | Z-intel Hvy. Gatling Laser | -5/Factory | Z-intel Enh. Coil Gun | -5/Factory | Z-intel Cld. Plasma Rifle | -5/Factory | Z-intel Lgt. Neutrino Core | -5/Factory | Z-intel Prc. Energy Filter | -5/Factory | Z-intel Biomechanical Wings | -5/Factory | Z-intel Enh. Armored Leg | -5/Factory | Z-intel Prc. Matter Filter | -5/Factory | Z-intel Tri-rail Accelerator | -5/Factory | Z-intel Exp. Terrain Scan Processor | -5/Factory | Z-intel Exp. Signal Interpreter | -5/Factory | Z-intel Xenon Bombardment Thruster | -5/Factory | Scanalyzed Cloaking Device | -5/Factory | Scanalyzed Shield Generator | -5/Factory | Scanalyzed Hardlight Generator | -5/Extension | Z-intel System Shield | -5/Extension | Z-intel Imp. Kinecellerator | -5/Extension | Z-intel Imp. Medium Armor Plating | -5/Extension | Z-intel Remote Shield | -5/Extension | Z-intel Imp. Proton Missile Launcher | -5/Extension | Z-intel Imp. Coolant Injector | -5/Extension | Z-intel Remote Datajack | -5/Extension | Z-intel Focal Shield | -5/Extension | Z-intel Imp. Hacking Suite | -5/Extension | Z-intel Adv. Weight Redist. System | -5/Extension | Z-intel Imp. Recalibrator | -5/Extension | Z-intel Imp. System Shield | -5/Extension | Z-intel Phase Cannon | -5/Extension | Z-intel Hpw. Tractor Beam | -5/Extension | Z-intel Antigrav System | -5/Extension | Z-intel Plasma Rifle | -5/Hub_04(d) | Z-intel Chainsword | -5/Hub_04(d) | Z-intel Imp. Gravmag System | -5/Hub_04(d) | Z-intel Lrn. Tractor Beam | -5/Hub_04(d) | Z-intel Neutrino Core | -5/Hub_04(d) | Z-intel Imp. Thermal Shield | -5/Hub_04(d) | Z-intel Hvy. Treads | -5/Hub_04(d) | Z-intel Integration Mediator | -5/Hub_04(d) | Z-intel Phase Shifter | -5/Hub_04(d) | Z-intel Hpw. Shock Rifle | -5/Hub_04(d) | Z-intel Plasma Cannon | -5/Hub_04(d) | Z-intel Point Defense System | -5/Hub_04(d) | Z-intel Adv. ECM Suite | -5/Hub_04(d) | Z-intel Remote Force Field | -5/Hub_04(d) | Z-intel Energy Well | -5/Hub_04(d) | Z-intel Imp. Cryofiber Web | -5/Hub_04(d) | Z-intel Cold Fusion Reactor | -5/Hub_04(d) | Z-intel Enh. Force Rifle | -5/Hub_04(d) | Z-intel Prc. Shock Rifle | -5/Hub_04(d) | Z-intel Ionic Axe | -5/Hub_04(d) | Z-intel Enh. Fission Core | -5/Hub_04(d) | Z-intel Cld. Particle Cannon | -5/Hub_04(d) | Z-intel Mni. Smartbomb Launcher | -5/Hub_04(d) | Z-intel Cld. Gravmag System | -5/Hub_04(d) | Z-intel F-cell Engine | -5/Hub_04(d) | Z-intel Exp. Optical Array | -5/Hub_04(d) | Z-intel Scatter Rocket Array | -5/Hub_04(d) | Z-intel Cld. Deuterium Engine | -5/Hub_04(d) | Z-intel Nuclear Pulse Array | -4/Factory | Scanalyzed Adv. Force Field | -4/Factory | Scanalyzed Assault Drone Bay | -4/Zhirov | Free Imp. Arc Thrower | -4/Zhirov | Free Adv. Thermal Generator | -3/Quarantine | Scanalyzed Shock Maul | -3/Quarantine | Z-intel Exp. Reclamation Unit | -3/Quarantine | Z-intel Gravity Neutralizing Apparatus | -3/Quarantine | Z-intel Exp. Coolant Injector | -3/Quarantine | Z-intel Adv. Dynamic Insulation System | -3/Quarantine | Z-intel Electron Diverter | -3/Quarantine | Z-intel Centrium Greatsword | -3/Quarantine | Z-intel Exp. Sensor Array | -3/Quarantine | Z-intel Proton Burst Cannon | -3/Quarantine | Z-intel Cld. Field Propulsion Drive | -3/Quarantine | Z-intel Cld. Impulse Thruster | -3/Quarantine | Z-intel Hdn. Centrium Wheel | -3/Quarantine | Z-intel Impulse Thruster | -3/Quarantine | Scanalyzed System Restoration Module | -2/Research | Scanalyzed Robot Schematics ------------------ A-15 Conveyor | -5/Factory | Z-intel Y-64 Sentinel | -5/Factory | Z-intel K-01 Serf | -5/Factory | Z-intel R-06 Scavenger | -5/Factory | Z-intel X-62 Marksman | -5/Factory | Z-intel B-48 Gladiator | -5/Factory | Z-intel T-07 Excavator | -5/Factory | Z-intel G-50 Soldier | -5/Factory | Z-intel B-60 Warrior | -5/Extension | Z-intel A-02 Transporter | -5/Extension | Z-intel M-22 Extractor | -5/Extension | Z-intel S-27 Virus | -5/Extension | Z-intel R-10 Processor | -5/Extension | Z-intel P-60 Hacker | -5/Extension | Z-intel I-47 Archangel | -5/Extension | Z-intel D-63 Destroyer | -5/Extension | Z-intel H-66 Slayer | -5/Cetus | Z-intel I-36 Angel | -5/Cetus | Z-intel L-41 Fighter | -5/Cetus | Z-intel E-15 Imp | -5/Cetus | Z-intel B-74 Champion | -3/Quarantine | Z-intel G-67 Veteran | -3/Quarantine | Z-intel L-61 Swordsman | -3/Quarantine | Z-intel C-55 Analyst | -3/Quarantine | Z-intel W-44 Eye | -3/Quarantine | Z-intel S-43 Plague | -3/Quarantine | Z-intel O-32 Director | -3/Quarantine | Z-intel M-30 Cleanser | -3/Quarantine | Z-intel Fabricated ------------ Biomechanical Wings | x1 | -4/Factory Biomechanical Wings | x1 | -4/Factory Ionic Axe | x1 | -4/Factory Cold Fusion Reactor | x1 | -3/Research Alien Tech Used ----------------- Integrated Dissipator Transdimensional Reconstructor Subatomic Replicator Core Cannon High-powered Transdimensional Reconstructor Sigix Broadsword Dimensional Node Initializer Achievements -------------- Adventurer Ambidextrous Assassin Brute Force Executioner Explorer Freeware Friend Of Zion GoHome() Help From High Places It Was An Accident, I Swear Melee Specialist Omniscient Cartographer Preemptive Strike Revising The Future Subspace Traveler The Science Guy Challenges ------------ None RPGLIKE | -11 -10 -9 -9 -9 -8 -8 -7 -7 -7 -7 -6 -6 -6 -6 -6 -6 -5 -5 -5 -5 -5 -4 -4 -4 -4 -4 -4 -3 -3 -3 -2 -2 -2 --------- Run | Scr Mat Mat Min Exi Min Mat Fac Low Low Zio Pro Fac Gar Fac Low Low Fac Ext Cet Arc Hub Fac Gar Fac Upp Upp Zhi Pro Res Qua Res Gar Res Levels Raised 30 | . . 3 . . 1 2 3 . 1 1 1 2 1 . 1 . 2 2 1 . 1 1 1 . . . 1 1 1 . 2 1 . XP Earned 52196 | 6000 250 4646 500 200 1095 2703 4118 1400 1000 800 2719 1575 2196 60 1111 349 3556 2649 995 374 1307 1354 1431 227 523 170 220 1897 1756 776 2043 1780 416 XP Spent 47995 | 2850 1750 5545 . . 750 3675 3300 825 2000 1100 . 2300 200 4000 . . 2900 2950 2300 . . 3200 . 2000 . . . . 3500 1300 1550 . . Upgrades 57 | 6 4 17 . . 1 5 4 2 1 1 . 1 1 2 . . 1 2 4 . . 1 . 1 . . . . 1 1 1 . . Power Slot 1 | . . . . . . 1 . . . . . . . . . . . . . . . . . . . . . . . . . . . Propulsion Slot 4 | . 1 1 . . . . 1 . . . . . . . . . . . 1 . . . . . . . . . . . . . . Utility Slot 11 | 2 . 2 . . . 1 . . 1 . . 1 . 1 . . 1 . . . . 1 . . . . . . 1 . . . . Weapon Slot 6 | . 1 . . . . . . 1 . 1 . . . 1 . . . 1 . . . . . 1 . . . . . . . . . Core Integrity 1 | . . . . . . . . 1 . . . . . . . . . . . . . . . . . . . . . . . . . Heat Dissipation 4 | . . 4 . . . . . . . . . . . . . . . . . . . . . . . . . . . . . . . Energy Generation 6 | 2 . 1 . . . 1 . . . . . . . . . . . . . . . . . . . . . . . 1 1 . . Energy Storage 2 | . . . . . . 2 . . . . . . . . . . . . . . . . . . . . . . . . . . . Mass Support 3 | 2 . . . . . . 1 . . . . . . . . . . . . . . . . . . . . . . . . . . Inventory Capacity 5 | . 2 . . . 1 . 1 . . . . . . . . . . 1 . . . . . . . . . . . . . . . Sight Range 1 | . . . . . . . 1 . . . . . . . . . . . . . . . . . . . . . . . . . . Sensor Range 3 | . . 3 . . . . . . . . . . . . . . . . . . . . . . . . . . . . . . . Terrain Scan Density 1 | . . 1 . . . . . . . . . . . . . . . . . . . . . . . . . . . . . . . Melee Accuracy 1 | . . . . . . . . . . . . . 1 . . . . . . . . . . . . . . . . . . . . Hack Attack % 1 | . . 1 . . . . . . . . . . . . . . . . . . . . . . . . . . . . . . . Hack Defense % 1 | . . 1 . . . . . . . . . . . . . . . . . . . . . . . . . . . . . . . KI Resistance % 2 | . . 1 . . . . . . . . . . . . . . . . 1 . . . . . . . . . . . . . . TH Resistance % 2 | . . 1 . . . . . . . . . . . . . . . . 1 . . . . . . . . . . . . . . EX Resistance % 2 | . . 1 . . . . . . . . . . . . . . . . 1 . . . . . . . . . . . . . . Protomatter Created 4760 | . 12 33 . . . . . 319 74 . 221 . . . 82 . 221 348 251 192 196 75 568 113 179 141 58 556 355 141 . 472 153 Integrity Restored 4895 | . 27 . . . . . . 744 142 . 170 . 139 . 91 . 320 691 218 265 192 534 223 81 59 13 58 150 127 106 . 455 90 Core 3725 | . 13 . . . . . . 695 29 . 121 . 95 . 31 . 256 671 78 192 192 389 143 65 33 7 53 88 103 89 . 292 90 Parts 1170 | . 14 . . . . . . 49 113 . 49 . 44 . 60 . 64 20 140 73 . 145 80 16 26 6 5 62 24 17 . 163 . Protomatter Decayed 4356 | . 1 . . . . . . 69 25 . 161 96 44 . 50 . 266 443 172 . 417 2 635 59 156 135 38 501 310 105 . 533 138 Game ------ Seed SkeletonArmageddonKit Manual? 0 Play Time 06:29:26 Cumulative 48.2 hours Start 2020.03.26 @ 19:24:25 End 2020.03.27 @ 03:14:12 Sessions 3 Manual Loads 0 Difficulty Explorer Special Mode Winter2019/RPGLIKE Game No. 8 Rogue 1 Adventurer 2 Explorer 5 Win Type - Total 2 Types 2/0/0/0/0/0/0 Lore% 39 Gallery% 64 Achievement% 43 Wizard Run 0 Options --------- ASCII 0 Keyboard 0 Movement Mouse Keybinds 0 Fullscreen 2 Font 24/Terminus Map View 76x50 Tactical HUD 1 Map Filters NONE Filters NONE Steam 1 RUN: 03189a65-ecb3-4b9f-81b4-ddc08f413e5e